Workbook

Sheet Foglio1
C1: % CARB. | D1: % PROT. | F1: % LIP. | G1: CAR./GR. | J1: PROT./GR. | L1: LIP./GR. | AN1: CALORIE | AO1: CARBOIDRATI | AP1: PROTEINE | AQ1: LIPIDI | AY1: Testo blu = ha solo calorie / rosso riga vuota / rosa elementi presi per similitudine
C2: 60 | D2: 20 | F2: 20 | G2: 4.1 | J2: 4.2 | L2: 9.3 | AN2: =IF(ISNUMBER(VALUE(AO2)+VALUE(AP2)+VALUE(AQ2)),((VALUE(AO2)+VALUE(AP2)+VALUE(AQ2))*100)&"%","--") -> 100% | AO2: =IF(ISERROR((SUM(T19:T1102)*G2)/(SUM(T19:T1102)*G2+SUM(V19:V1102)*J2+SUM(W19:W1102)*L2)),"---",ROUND(((SUM(T19:T1102)*G2)/(SUM(T19:T1102)*G2+SUM(V19:V1102)*J2+SUM(W19:W1102)*L2))*100,0)&"%") -> 45% | AP2: =IF(ISERROR((SUM(V19:V1102)*J2)/(SUM(T19:T1102)*G2+SUM(V19:V1102)*J2+SUM(W19:W1102)*L2)),"---",ROUND(((SUM(V19:V1102)*J2)/(SUM(T19:T1102)*G2+SUM(V19:V1102)*J2+SUM(W19:W1102)*L2))*100,0)&"%") -> 17% | AQ2: =IF(ISERROR((SUM(W19:W1102)*L2)/(SUM(T19:T1102)*G2+SUM(V19:V1102)*J2+SUM(W19:W1102)*L2)),"---",ROUND(((SUM(W19:W1102)*L2)/(SUM(T19:T1102)*G2+SUM(V19:V1102)*J2+SUM(W19:W1102)*L2))*100,0)&"%") -> 38% | AR2: = Percentuale che le calorie di ogni componente rappresentano sul totale | AY2: 1 bicch. da osteria = 100 gr.
AN3: =IF(OR(ISERROR(SUM(AE19:AE1102)),SUM(AM19:AM1102)=0),"--",ROUND(SUM(AE19:AE1102),0)) -> 2106 | AO3: =IF(OR(ISERROR(SUM(T19:T1102)),COUNT(AM19:AM1102)=0),"--",ROUND(SUM(T19:T1102),1)) -> 223.7 | AP3: =IF(OR(ISERROR(SUM(AH19:AH1102)),COUNT(AM21:AM1102)=0),"--",ROUND(SUM(AI19:AI1102),1)) -> 78.7 | AQ3: =IF(OR(ISERROR(SUM(W19:W1102)),COUNT(AM19:AM1102)=0),"--",ROUND(SUM(W19:W1102),1)) -> 84 | AR3: = Grammi di zuccheri, di proteine e di grassi | AY3: 1 bicch. = 126 gr. / 1 bicch. rigato = 160 gr.
A4: gr. proteine da carne, pesce, latticini, polvere proteica | AN4: =IF(OR(ISERROR(SUM(AF19:AF1102)),COUNT(AM19:AM1102)=0),"--",ROUND(SUM(AF19:AF1102),1)) -> 56.5 | AO4: =IF(OR(ISERROR(SUM(U21:U1103)),COUNT(AM20:AM1103)=0),"--",ROUND(SUM(U21:U1103),1)) -> 73 | AQ4: =IF(OR(ISERROR(SUM(X21:X1103)),COUNT(AM21:AM1103)=0),"--",ROUND(SUM(X21:X1103),1)) -> 21.4 | AY4: 1 misurino per polvere proteica = 10 gr.
A5: gr. proteine da carne, pesce, latticini, polvere proteica, soia, legumi | AN5: =IF(OR(ISERROR(SUM(AG19:AG1102)),COUNT(AM19:AM1102)=0),"--",ROUND(SUM(AG19:AG1102),1)) -> 65.2 | AO5: 50% | AP5: 20% | AQ5: 30% | AR5: = Dieta piramide alimentare | AY5: 1 tazzina caffé =60 gr.
A6: gr proteine da carne, pesce, latticini, polv. proteica, soia, legumi, semi | AN6: =IF(OR(ISERROR(SUM(AH19:AH1102)),COUNT(AM19:AM1102)=0),"--",ROUND(SUM(AH19:AH1102),1)) -> 65.2 | AO6: PESO | AP6: PROTEINE/KG | AY6: 1 tazzina caffé non pienissima=40 gr.
A7: gr. proteine da carne, pesce, latticini, polvere proteica, soia, legumi, cereali | AN7: =IF(OR(ISERROR(SUM(AI19:AI1102)),COUNT(AM19:AM1102)=0),"--",ROUND(SUM(AI19:AI1102),1)) -> 78.7 | AO7: 67.6 | AP7: =IF(ISERROR(AN7/AO7),"--",ROUND(AN7/AO7,2)&" ("&ROUND(AN8/AO7,2)&")") -> 1,16 (1,2)
A8: gr. proteine da qualsiasi fonte | AN8: =IF(OR(ISERROR(SUM(AK21:AK1102)),COUNT(AK21:AK1102)=0),"--",ROUND(SUM(AK21:AK1102),1)) -> 80.8 | AO8: Consumo giornaliero proteine soia in Giappone: 8,6 gr.; Consumo giornaliero fuori del Giappone (Cina ecc.): 3-5 gr.
A9: gr. proteine da soia e derivati | AN9: =IF(OR(ISERROR(SUM(AJ21:AJ1102)),COUNT(AM21:AM1102)=0),"--",ROUND(SUM(AJ21:AJ1102),1)) -> 0
A10: gr. carboidrati | AN10: =IF(OR(ISERROR(SUM(T21:T1102)),COUNT(AM21:AM1102)=0),"--",ROUND(SUM(T21:T1102),1)) -> 223.7 | AO10: Consumo max carboidrati per pasto = 80
A11: gr. carboidrati semplici | AN11: =AO4 -> 73 | AO11: CALCIO | AP11: =IF(OR(ISERROR(SUM(Y20:Y1103)),COUNT(Y20:Y1103)=0),"---",ROUND(SUM(Y20:Y1103),0) & " mg") -> 1096 mg | AQ11: RDA 800 mg | AR11: Supradyn 51 mg
A12: gr. carboidrati complessi | AN12: =IF(ISERROR(AO3-AO4),"--",AO3-AO4) -> 150.7 | AO12: FOSFORO | AP12: =IF(OR(ISERROR(SUM(Z19:Z1102)),COUNT(Z19:Z1102)=0),"---",ROUND(SUM(Z19:Z1102),0) & " mg") -> 1948 mg | AQ12: RDA 700 mg | AR12: Supradyn 23,8 mg
A13: percentuale calorie da proteine su calorie totali (*) | AN13: =IF(ISNUMBER(((AN4*4)/$AN$3)*100),((AN4*4)/$AN$3)*100,"--") -> 10.73124406 | AO13: MAGNESIO | AP13: =IF(OR(ISERROR(SUM(AA19:AA1102)),COUNT(AA19:AA1102)=0),"---",ROUND(SUM(AA19:AA1102),0) & " mg") -> 734 mg | AQ13: RDA 420 mg | AR13: Supradyn 18,5 mg
A14: percentuale calorie da proteine su calorie totali (*) (s) (l) | AN14: =IF(ISNUMBER(((AN5*4)/$AN$3)*100),((AN5*4)/$AN$3)*100,"--") -> 12.38366572 | AO14: POTASSIO | AP14: =IF(OR(ISERROR(SUM(AB20:AB1103)),COUNT(AB20:AB1103)=0),"---",ROUND(SUM(AB20:AB1103),0) & " mg") -> 4347 mg | AQ14: RDA 2000 mg | AR14: Supradyn 0 mg
A15: percentuale calorie da proteine su calorie totali (*) (s) (l) (°) | AN15: =IF(ISNUMBER(((AN6*4)/$AN$3)*100),((AN6*4)/$AN$3)*100,"--") -> 12.38366572 | AO15: SODIO | AP15: =IF(OR(ISERROR(SUM(AC21:AC1104)),COUNT(AC21:AC1104)=0),"---",ROUND(SUM(AC21:AC1104),0) & " ("&ROUND(SUM(AC21:AC1104)+VALUE(SUBSTITUTE(SUBSTITUTE(AR15,"Sale","")," mg","")),0)&") mg") -> 1183 (1447) mg | AQ15: RDA 3500 mg | AR15: Sale 264 mg | AS15: Supradyn 0,1 mg
A16: percentuale calorie da proteine su calorie totali (*) (s) (l) (°) (c) | AN16: =IF(ISNUMBER(((AN7*4)/$AN$3)*100),ROUND(((AN7*4)/$AN$3)*100,0) & " ("&ROUND(((AN8*4)/$AN$3)*100,0)&")","--") -> 15 (15) | AO16: FIBRA | AP16: =IF(OR(ISERROR(SUM(AD19:AD1102)),COUNT(AD19:AD1102)=0),"---",ROUND(SUM(AD19:AD1102),0) & " g") -> 20 g | AQ16: RDA 30 g
A17: ALIMENTO | C17: UNITÁ>DESCRIZIONE | D17: UNITÁ>PESO | E17: EDIBILE | F17: CALORIE | G17: CARBOIDRATI | H17: ZUCCHERI | I17: INDICE GLICEMICO | J17: PROTEINE | K17: AMINO ACID SCORE | L17: LIPIDI | M17: SATURI | N17: CALCIO | O17: FOSFORO | P17: MAGNESIO | Q17: POTASSIO | R17: SODIO | S17: FIBRA | T17: CARB. | U17: Zuccheri | V17: PROT. | W17: LIP. | X17: SATURI | Y17: CALCIO | Z17: FOSFORO | AA17: MAGNESIO | AB17: POTASSIO | AC17: SODIO | AD17: FIBRA | AE17: Calorie | AF17: Prot * | AG17: Prot *lS | AH17: Prot *lS° | AI17: Prot *lS°c | AJ17: Prot S | AK17: Prot Tot | AM17: abracadabra | AN17: calorie | AO17: carboidrati | AP17: proteine | AQ17: lipidi
A19: ALTRO ALIMENTO (scrivi i valori nutrizionali nei riquadri beige e i grammi nel riquadro grigio) | F19: =AN19 -> 156 | G19: =AO19 -> 45 | J19: =AP19 -> 2.4 | L19: =AQ19 -> 3 | T19: =IF(ISNUMBER(D19),((D19*AM19)/100)*G19,(AM19/100)*G19) -> 0 | V19: =IF(ISNUMBER(D19),((D19*AM19)/100)*J19,(AM19/100)*J19) -> 0 | W19: =IF(ISNUMBER(D19),((D19*AM19)/100)*L19,(AM19/100)*L19) -> 0 | AE19: =IF(ISNUMBER(AN19), IF(ISNUMBER(AM19),IF(ISNUMBER(D19),((D19*AM19)/100)*F19,(AM19/100)*F19),"--"),"--") -> -- | AF19: =IF(ISNUMBER($AM19),IF($AL19="*",$V19,"--"),"--") -> -- | AG19: =IF(ISNUMBER($AM19),IF(OR($AL19="*",$AL19="s",$AL19="l"),$V19,"--"),"--") -> -- | AH19: =IF(ISNUMBER($AM19),IF(OR($AL19="*",$AL19="s",$AL19="l",$AL19="°"),$V19,"--"),"--") -> -- | AI19: =IF(ISNUMBER($AM19),IF(OR($AL19="*",$AL19="s",$AL19="l",$AL19="°",$AL19="c"),$V19,"--"),"--") -> -- | AL19: l | AN19: 156 | AO19: 45 | AP19: 2.4 | AQ19: 3
A20: CALORIE (scrivi le sole calorie nel riquadro grigio) | AE20: =IF(ISNUMBER(AM20),AM20,"--") -> --
A21: Albicocca | B21: * | E21: 0.93 | F21: 28 | G21: 7.6 | H21: 9.24 | I21: 4 | J21: 0.4 | K21: 26 | L21: 0.1 | M21: 0.027 | N21: 13 | O21: 23 | P21: 10 | Q21: 259 | R21: 1 | S21: 2 | T21: =IF(ISNUMBER(D21),((D21*AM21)/100)*G21,(AM21/100)*G21) -> 0 | U21: =IF(ISNUMBER(AE21),IF(ISNUMBER(D21),((D21*AM21)/100)*H21,(AM21/100)*H21),"") ->  | V21: =IF(ISNUMBER(D21),((D21*AM21)/100)*J21,(AM21/100)*J21) -> 0 | W21: =IF(ISNUMBER(D21),((D21*AM21)/100)*L21,(AM21/100)*L21) -> 0 | X21: =IF(ISNUMBER(D21),((D21*AM21)/100)*M21,(AM21/100)*M21) -> 0 | Y21: =IFERROR(IF(ISNUMBER(D21),((D21*AM21)/100)*N21,(AM21/100)*N21),"--") -> 0 | Z21: =IFERROR(IF(ISNUMBER(D21),((D21*AM21)/100)*O21,(AM21/100)*O21),"--") -> 0 | AA21: =IFERROR(IF(ISNUMBER(D21),((D21*AM21)/100)*P21,(AM21/100)*P21),"--") -> 0 | AB21: =IFERROR(IF(ISNUMBER(D21),((D21*AM21)/100)*Q21,(AM21/100)*Q21),"--") -> 0 | AC21: =IFERROR(IF(ISNUMBER(D21),((D21*AM21)/100)*R21,(AM21/100)*R21),"--") -> 0 | AD21: =IFERROR(IF(ISNUMBER($D21),(($D21*$AM21)/100)*S21,($AM21/100)*S21),"--") -> 0 | AE21: =IF(ISNUMBER(AM21),IF(ISNUMBER(D21),((D21*AM21)/100)*F21,(AM21/100)*F21)," ") ->  | AF21: =IF(ISNUMBER($AM21),IF($AL21="*",$V21,"--"),"--") -> -- | AG21: =IF(ISNUMBER($AM21),IF(OR($AL21="*",$AL21="s",$AL21="l"),$V21,"--"),"--") -> -- | AH21: =IF(ISNUMBER($AM21),IF(OR($AL21="*",$AL21="s",$AL21="l",$AL21="°"),$V21,"--"),"--") -> -- | AI21: =IF(ISNUMBER($AM21),IF(OR($AL21="*",$AL21="s",$AL21="l",$AL21="°",$AL21="c"),$V21,"--"),"--") -> -- | AJ21: =IF(ISNUMBER($AM21),IF($AL21="s",$V21,"--"),"--") -> -- | AK21: =IF(ISNUMBER($AM21),$V21,"--") -> --
A22: Albicocca, secca (grammi) | B22: * | E22: 1 | F22: 277 | G22: 66 | H22: 0 | I22: 40 | J22: 2.4 | K22: 30 | L22: 0 | M22: 0.043 | N22: 86 | O22: 139 | P22: 32 | Q22: 1162 | R22: 10 | S22: 7 | T22: 0 | U22: =IF(ISNUMBER(AE22),IF(ISNUMBER(D22),((D22*AM22)/100)*H22,(AM22/100)*H22),"") ->  | V22: 0 | W22: 0 | X22: =IF(ISNUMBER(D22),((D22*AM22)/100)*M22,(AM22/100)*M22) -> 0 | Y22: 0 | Z22: 0 | AA22: 0 | AB22: 0 | AC22: =IFERROR(IF(ISNUMBER(D22),((D22*AM22)/100)*R22,(AM22/100)*R22),"--") -> 0 | AD22: 0 | AE22: =IF(ISNUMBER(AM22),IF(ISNUMBER(D22),((D22*AM22)/100)*F22,(AM22/100)*F22)," ") ->  | AF22: =IF(ISNUMBER($AM22),IF($AL22="*",$V22,"--"),"--") -> -- | AG22: -- | AH22: -- | AI22: -- | AJ22: -- | AK22: -- | AN22: ALBICOCCA SECCA | AP22: 1 albicocca secca = 7,5 gr
A23: Albicocca secca (una) | B23: * | D23: 12 | E23: 1 | F23: 277 | G23: 66 | H23: 0 | I23: 40 | J23: 2.4 | K23: 30 | L23: 0 | M23: 0.043 | N23: 86 | O23: 139 | P23: 32 | Q23: 1162 | R23: 10 | S23: 7 | T23: 0 | V23: 0 | W23: 0 | X23: 0 | Y23: 0 | Z23: 0 | AA23: 0 | AB23: 0 | AC23: 0 | AD23: 0 | AF23: =IF(ISNUMBER($AM23),IF($AL23="*",$V23,"--"),"--") -> -- | AG23: -- | AH23: -- | AI23: -- | AJ23: -- | AK23: --
A24: Alga | F24: 138 | J24: =(20+34)/2 -> 27 | T24: 0 | V24: 0 | W24: 0 | X24: 0 | Y24: 0 | Z24: 0 | AA24: 0 | AB24: 0 | AC24: 0 | AD24: 0 | AF24: =IF(ISNUMBER($AM24),IF($AL24="*",$V24,"--"),"--") -> -- | AG24: -- | AH24: -- | AI24: -- | AJ24: -- | AK24: --
A25: Alice, sott'olio | F25: 206 | G25: 0.2 | J25: 25.9 | L25: 11.3 | N25: 232 | O25: 252 | P25: 69 | Q25: 544 | R25: 3668 | S25: 0 | T25: 0 | V25: 0 | W25: 0 | X25: 0 | Y25: 0 | Z25: 0 | AA25: 0 | AB25: 0 | AC25: 0 | AD25: 0 | AF25: =IF(ISNUMBER($AM25),IF($AL25="*",$V25,"--"),"--") -> -- | AG25: -- | AH25: -- | AI25: -- | AJ25: -- | AK25: -- | AL25: *
A26: Alice, sotto sale | F26: 105 | G26: 0 | J26: 12.2 | L26: 6.2 | N26: 542 | O26: 481 | Q26: 215 | R26: 3604 | S26: 0 | T26: 0 | V26: 0 | W26: 0 | X26: 0 | Y26: 0 | Z26: 0 | AA26: 0 | AB26: 0 | AC26: 0 | AD26: 0 | AF26: =IF(ISNUMBER($AM26),IF($AL26="*",$V26,"--"),"--") -> -- | AG26: -- | AH26: -- | AI26: -- | AJ26: -- | AK26: -- | AL26: *
A27: Arachide | B27: * | E27: 0.65 | F27: 600 | G27: 22.8 | H27: 1 | I27: 0 | J27: 26 | K27: 70 | L27: 45.7 | M27: 7 | N27: 64 | O27: 358 | P27: 167 | Q27: 680 | R27: 12 | S27: 9 | T27: 0 | V27: 0 | W27: 0 | X27: 0 | Y27: 0 | Z27: 0 | AA27: 0 | AB27: 0 | AC27: 0 | AD27: 0 | AF27: -- | AG27: -- | AH27: -- | AI27: -- | AJ27: -- | AK27: -- | AL27: ° | AN27: ARACHIDI | AO27: 7 arachidi = 16 gr.
A28: Arancia | B28: * | E28: 0.73 | F28: 34 | G28: 9.4 | H28: 9.4 | I28: 3 | J28: 0.5 | K28: 44 | L28: 0 | M28: 0 | N28: 40 | O28: 14 | P28: 11 | Q28: 200 | R28: 3 | S28: 1.6 | T28: 0 | V28: 0 | W28: 0 | X28: 0 | Y28: 0 | Z28: 0 | AA28: 0 | AB28: 0 | AC28: 0 | AD28: 0 | AF28: -- | AG28: -- | AH28: -- | AI28: -- | AJ28: -- | AK28: --
A29: Arancia, spremuta | F29: 37 | G29: 9.4 | J29: 0.5 | L29: 0 | N29: 11 | O29: 17 | P29: 11 | Q29: 200 | R29: 1 | S29: 0.2 | T29: 0 | V29: 0 | W29: 0 | X29: 0 | Y29: 0 | Z29: 0 | AA29: 0 | AB29: 0 | AC29: 0 | AD29: 0 | AF29: -- | AG29: -- | AH29: -- | AI29: -- | AJ29: -- | AK29: --
A30: Aranciata | F30: 50 | S30: 0 | T30: 0 | V30: 0 | W30: 0 | X30: 0 | Y30: 0 | Z30: 0 | AA30: 0 | AB30: 0 | AC30: 0 | AD30: 0 | AF30: -- | AG30: -- | AH30: -- | AI30: -- | AJ30: -- | AK30: --
A31: Aringa | B31: * | E31: 0.7 | F31: 216 | H31: 0 | I31: 0 | K31: 148 | M31: 2 | N31: 63 | O31: 113 | P31: 32 | Q31: 320 | R31: 90 | S31: 0 | T31: 0 | V31: 0 | W31: 0 | X31: 0 | Y31: 0 | Z31: 0 | AA31: 0 | AB31: 0 | AC31: 0 | AD31: 0 | AF31: -- | AG31: -- | AH31: -- | AI31: -- | AJ31: -- | AK31: -- | AL31: *
A32: Aringa, salata e affumicata | B32: * | E32: 1 | F32: 254 | G32: 0 | H32: 0 | I32: 0 | J32: 23 | K32: 148 | L32: 18 | M32: 4.2 | N32: 84 | O32: 325 | P32: 46 | Q32: 447 | R32: 1030 | S32: 0 | T32: 0 | V32: 0 | W32: 0 | X32: 0 | Y32: 0 | Z32: 0 | AA32: 0 | AB32: 0 | AC32: 0 | AD32: 0 | AF32: -- | AG32: -- | AH32: -- | AI32: -- | AJ32: -- | AK32: -- | AL32: *
A33: Avena | F33: 372 | G33: 72.8 | J33: 8 | L33: 7.5 | N33: 54 | O33: 523 | P33: 177 | Q33: 429 | R33: 2 | S33: 10.6 | T33: 0 | V33: 0 | W33: 0 | X33: 0 | Y33: 0 | Z33: 0 | AA33: 0 | AB33: 0 | AC33: 0 | AD33: 0 | AF33: -- | AG33: -- | AH33: -- | AI33: -- | AJ33: -- | AK33: -- | AL33: c
A34: Avena, fiocchi | B34: * | E34: 1 | F34: 372 | G34: 72.8 | H34: 3.8 | I34: 41 | J34: 8 | K34: -- | L34: 7.5 | M34: 1.4 | N34: 52 | O34: 410 | P34: 138 | Q34: 370 | R34: 33 | S34: 10.6 | T34: 0 | V34: 0 | W34: 0 | X34: 0 | Y34: 0 | Z34: 0 | AA34: 0 | AB34: 0 | AC34: 0 | AD34: 0 | AF34: -- | AG34: -- | AH34: -- | AI34: -- | AJ34: -- | AK34: -- | AL34: c | AN34: AVENA, FIOCCHI
A35: Avena, latte | F35: 43 | G35: 7 | J35: 1 | L35: 1 | N35: 0 | O35: 425 | P35: 130 | Q35: =(100/226)*133 -> 58.84955752 | R35: 28 | S35: 0.8 | T35: 0 | V35: 0 | W35: 0 | X35: 0 | Y35: 0 | Z35: 0 | AA35: 0 | AB35: 0 | AC35: 0 | AD35: 0 | AF35: -- | AG35: -- | AH35: -- | AI35: -- | AJ35: -- | AK35: -- | AN35: AVENA, LATTE
A36: Banana | B36: * | E36: 0.65 | F36: 80 | G36: 16.2 | H36: 12.2 | I36: 8 | J36: 1.2 | K36: 62 | L36: 0.3 | M36: 0.1 | N36: 5 | O36: 22 | P36: 31 | Q36: 350 | R36: 1 | S36: 2.6 | T36: 0 | V36: 0 | W36: 0 | X36: 0 | Y36: 0 | Z36: 0 | AA36: 0 | AB36: 0 | AC36: 0 | AD36: 0 | AF36: -- | AG36: -- | AH36: -- | AI36: -- | AJ36: -- | AK36: -- | AN36: BANANA
A37: Barbabietola rossa, lessata | B37: * | E37: 1 | H37: 8 | I37: 4 | K37: 70 | M37: 0 | N37: 16 | O37: 38 | P37: 23 | Q37: 549 | R37: 285 | S37: 2.6 | T37: 0 | V37: 0 | W37: 0 | X37: 0 | Y37: 0 | Z37: 0 | AA37: 0 | AB37: 0 | AC37: 0 | AD37: 0 | AF37: -- | AG37: -- | AH37: -- | AI37: -- | AJ37: -- | AK37: --
A38: Barbabietola rossa | B38: * | E38: 0.82 | F38: 19 | G38: 4 | H38: 6.8 | I38: 3 | J38: 1.1 | K38: 71 | L38: 0 | M38: 0 | T38: 0 | V38: 0 | W38: 0 | X38: 0 | Y38: 0 | Z38: 0 | AA38: 0 | AB38: 0 | AC38: 0 | AD38: 0 | AF38: -- | AG38: -- | AH38: -- | AI38: -- | AJ38: -- | AK38: --
A39: Bieta | B39: * | E39: 0.82 | F39: 12 | G39: 1.5 | H39: 1.1 | I39: 2 | J39: 1.3 | K39: 40 | L39: 0.1 | M39: 0 | N39: 16 | O39: 40 | P39: 113 | Q39: 325 | R39: 78 | S39: 1.6 | T39: 0 | V39: 0 | W39: 0 | X39: 0 | Y39: 0 | Z39: 0 | AA39: 0 | AB39: 0 | AC39: 0 | AD39: 0 | AF39: -- | AG39: -- | AH39: -- | AI39: -- | AJ39: -- | AK39: --
A40: Bieta, surgelata | B40: * | E40: 1 | F40: 12 | G40: 1.5 | H40: 1.1 | I40: 2 | J40: 1.3 | K40: 40 | L40: 0.1 | M40: 0 | N40: 16 | O40: 40 | P40: 113 | Q40: 325 | R40: 78 | S40: 1.6 | T40: 0 | V40: 0 | W40: 0 | X40: 0 | Y40: 0 | Z40: 0 | AA40: 0 | AB40: 0 | AC40: 0 | AD40: 0 | AF40: -- | AG40: -- | AH40: -- | AI40: -- | AJ40: -- | AK40: --
A41: Birra | F41: 47 | G41: 3 | J41: 0.3 | L41: 0 | N41: 4 | O41: 14 | P41: 6 | Q41: 325 | R41: 78 | S41: 0 | T41: 0 | V41: 0 | W41: 0 | X41: 0 | Y41: 0 | Z41: 0 | AA41: 0 | AB41: 0 | AC41: 0 | AD41: 0 | AF41: -- | AG41: -- | AH41: -- | AI41: -- | AJ41: -- | AK41: --
A42: Biscotto economico Coop | F42: 440 | G42: 70 | H42: 20 | J42: 7.3 | L42: 14 | M42: 6.8 | R42: 0,48 sale | S42: 2.5 | T42: 0 | V42: 0 | W42: 0 | X42: 0 | Y42: 0 | Z42: 0 | AA42: 0 | AB42: 0 | AC42: -- | AD42: 0 | AF42: -- | AG42: -- | AH42: -- | AI42: -- | AJ42: -- | AK42: -- | AN42: BISCOTTO ECONOMICO COOP
A43: Biscotto Gran Turchese Colussi | B43: * | F43: 452 | G43: 72.7 | H43: 25 | J43: 8.5 | L43: 14.1 | M43: 5.3 | T43: 0 | V43: 0 | W43: 0 | X43: 0 | Y43: 0 | Z43: 0 | AA43: 0 | AB43: 0 | AC43: 0 | AD43: 0 | AF43: -- | AG43: -- | AH43: -- | AI43: -- | AJ43: -- | AK43: -- | AL43: c
A44: Biscotto, frollini latte e miele Coop | F44: 455 | G44: 71.5 | J44: 9.3 | L44: 14.2 | R44: 200 | S44: 2 | T44: 0 | V44: 0 | W44: 0 | X44: 0 | Y44: 0 | Z44: 0 | AA44: 0 | AB44: 0 | AC44: 0 | AD44: 0 | AF44: -- | AG44: -- | AH44: -- | AI44: -- | AJ44: -- | AK44: -- | AL44: c | AN44: BISCOTTO FROLLINO COOP | AQ44: 1 biscotto = 6,9 gr. | AR44: 1 pacchetto (8 biscotti) = 60 gr.
A45: Biscotto, frollino Carrefour con granelli di zucchero | F45: 454 | G45: 74 | H45: 25 | J45: 7.4 | L45: 14 | M45: 5.3 | R45: 160 | S45: 2 | T45: 74 | U45: 25 | V45: 7.4 | W45: 14 | X45: 5.3 | Y45: 0 | Z45: 0 | AA45: 0 | AB45: 0 | AC45: 160 | AD45: 2 | AE45: 454 | AF45: -- | AG45: -- | AH45: -- | AI45: 7.4 | AJ45: -- | AK45: 7.4 | AL45: c | AM45: 100 | AN45: BISCOTTO CARREFOUR
A46: Biscotto, Oro Saiwa | B46: * | F46: 433 | G46: 77 | H46: 20 | J46: 8.5 | L46: 9.3 | M46: 0.9 | R46: 248 | S46: 3.4 | T46: 0 | V46: 0 | W46: 0 | X46: 0 | Y46: 0 | Z46: 0 | AA46: 0 | AB46: 0 | AC46: 0 | AD46: 0 | AF46: -- | AG46: -- | AH46: -- | AI46: -- | AJ46: -- | AK46: -- | AN46: BISCOTTO ORO SAIWA
A47: Biscotto, Oro Saiwa (uno) | B47: * | C47: 1 biscotto | D47: 5.2 | F47: 433 | G47: 77 | H47: 20 | J47: 8.5 | L47: 9.3 | M47: 0.9 | R47: 248 | S47: 3.4 | T47: 0 | V47: 0 | W47: 0 | X47: 0 | Y47: 0 | Z47: 0 | AA47: 0 | AB47: 0 | AC47: 0 | AD47: 0 | AF47: -- | AG47: -- | AH47: -- | AI47: -- | AJ47: -- | AK47: -- | AN47: BISCOTTO ORO SAIWA (UNO)
A48: Bovino adulto, filetto | B48: * | E48: 1 | F48: 130 | G48: 0 | H48: 0 | I48: 0 | J48: 20.7 | K48: 94 | L48: 5 | M48: 8.96 | N48: 9 | O48: 198 | P48: 22 | Q48: 346 | R48: 72 | S48: 0 | T48: 0 | V48: 0 | W48: 0 | X48: 0 | Y48: 0 | Z48: 0 | AA48: 0 | AB48: 0 | AC48: 0 | AD48: 0 | AF48: -- | AG48: -- | AH48: -- | AI48: -- | AJ48: -- | AK48: -- | AL48: * | AN48: FETTINA BOVINO
A49: Bresaola | B49: * | E49: 1 | F49: 164 | G49: 0.1 | H49: 0 | I49: 3 | J49: 33 | K49: 87 | L49: 3.5 | M49: 0.72 | N49: 7 | O49: 269 | P49: 25 | Q49: 630 | R49: 1600 | S49: 0 | T49: 0 | V49: 0 | W49: 0 | X49: 0 | Y49: 0 | Z49: 0 | AA49: 0 | AB49: 0 | AC49: 0 | AD49: 0 | AF49: -- | AG49: -- | AH49: -- | AI49: -- | AJ49: -- | AK49: -- | AL49: * | AN49: BRESAOLA
A50: Broccoletto | B50: * | E50: 0.72 | F50: 22 | G50: 2 | H50: 0 | I50: 3 | J50: 2.9 | K50: 72 | L50: 0 | M50: 0.1 | N50: 97 | O50: 69 | P50: 35 | Q50: 325 | R50: 33 | S50: 2.9 | T50: 0 | V50: 0 | W50: 0 | X50: 0 | Y50: 0 | Z50: 0 | AA50: 0 | AB50: 0 | AC50: 0 | AD50: 0 | AF50: -- | AG50: -- | AH50: -- | AI50: -- | AJ50: -- | AK50: --
A51: Budino | F51: 130 | G51: 18.4 | J51: 3.7 | L51: 4.6 | T51: 0 | V51: 0 | W51: 0 | X51: 0 | Y51: 0 | Z51: 0 | AA51: 0 | AB51: 0 | AC51: 0 | AD51: 0 | AF51: -- | AG51: -- | AH51: -- | AI51: -- | AJ51: -- | AK51: --
A52: Buondí Motta | F52: 399 | G52: 60 | J52: 6.7 | L52: 14.7 | T52: 0 | V52: 0 | W52: 0 | X52: 0 | Y52: 0 | Z52: 0 | AA52: 0 | AB52: 0 | AC52: 0 | AD52: 0 | AF52: -- | AG52: -- | AH52: -- | AI52: -- | AJ52: -- | AK52: --
A53: Burro | F53: 752 | G53: 0.6 | J53: 0.5 | L53: 83.1 | N53: 24 | O53: 0.7 | P53: 2 | Q53: 15 | R53: 11 | S53: 0 | T53: 0 | V53: 0 | W53: 0 | X53: 0 | Y53: 0 | Z53: 0 | AA53: 0 | AB53: 0 | AC53: 0 | AD53: 0 | AF53: -- | AG53: -- | AH53: -- | AI53: -- | AJ53: -- | AK53: --
A54: Burro di cacao, in polvere | F54: 900 | G54: 0 | J54: 0 | L54: 100 | N54: 0 | O54: 0 | P54: 0 | Q54: 0 | R54: 0 | S54: 0 | T54: 0 | V54: 0 | W54: 0 | X54: 0 | Y54: 0 | Z54: 0 | AA54: 0 | AB54: 0 | AC54: 0 | AD54: 0 | AF54: -- | AG54: -- | AH54: -- | AI54: -- | AJ54: -- | AK54: -- | AN54: BURRO DI CACAO
A55: Cacao, in polvere | B55: * | E55: 1 | F55: 349 | G55: 21.3 | H55: 1.8 | I55: 5 | J55: 20.5 | K55: 90 | L55: 20.2 | M55: 8.1 | N55: 128 | O55: 734 | P55: 475 | Q55: 1574 | R55: 21 | S55: 0 | T55: 0 | V55: 0 | W55: 0 | X55: 0 | Y55: 0 | Z55: 0 | AA55: 0 | AB55: 0 | AC55: 0 | AD55: 0 | AF55: -- | AG55: -- | AH55: -- | AI55: -- | AJ55: -- | AK55: -- | AL55: * | AN55: CACAO (GR.)
A56: Cacao, in polvere, 1 cucchiaino | B56: * | C56: 1 cucchiaino | D56: =39/14 -> 2.785714286 | E56: 1 | F56: 349 | G56: 21.3 | H56: 1.8 | I56: 5 | J56: 20.5 | K56: 90 | L56: 20.2 | M56: 8.1 | N56: 128 | O56: 734 | P56: 475 | Q56: 1574 | R56: 21 | S56: 0 | T56: 23.73428571 | U56: 2.005714286 | V56: 22.84285714 | W56: 22.50857143 | X56: 9.025714286 | Y56: 142.6285714 | Z56: 817.8857143 | AA56: 529.2857143 | AB56: 1753.885714 | AC56: 23.4 | AD56: 0 | AE56: 388.8857143 | AF56: 22.84285714 | AG56: 22.84285714 | AH56: 22.84285714 | AI56: 22.84285714 | AJ56: -- | AK56: 22.84285714 | AL56: * | AM56: 40 | AN56: CACAO (1 CUCCHIAINO) | AQ56: 1 cucchiaino normale = 2,8 gr.; 1 cucchiaino stracolmo = 4-5 - 5 gr.; 1 misurino per polvere proteica = 10 gr.; un misurino Whey Protein = 8 gr.
A57: Canapa, semi decorticati | B57: * | E57: 1 | F57: 566 | G57: 7 | H57: 1.5 | J57: 33 | L57: 44 | M57: 23 | N57: 70 | O57: 1650 | P57: 700 | Q57: 1200 | R57: 5 | S57: 4 | T57: 0 | V57: 0 | W57: 0 | X57: 0 | Y57: 0 | Z57: 0 | AA57: 0 | AB57: 0 | AC57: 0 | AD57: 0 | AF57: -- | AG57: -- | AH57: -- | AI57: -- | AJ57: -- | AK57: -- | AL57: ° | AN57: CANAPA
A58: Canapa, semi decorticati, un cucchiaino | B58: * | C58: 1 cucchiaino | D58: 2.6 | E58: 1 | F58: 566 | G58: 7 | H58: 1.5 | J58: 33 | L58: 44 | M58: 23 | N58: 70 | O58: 1650 | P58: 700 | Q58: 1200 | R58: 5 | S58: 4 | T58: 0 | V58: 0 | W58: 0 | X58: 0 | Y58: 0 | Z58: 0 | AA58: 0 | AB58: 0 | AC58: 0 | AD58: 0 | AF58: =IF(ISNUMBER($AM58),IF($AL58="*",$V58,"--"),"--") -> -- | AG58: -- | AH58: -- | AI58: -- | AJ58: -- | AK58: -- | AL58: ° | AN58: CANAPA, CUCCHIAINO
A59: Canapa, semi decorticati, un cucchiaio | B59: * | C59: 1 cucchiaio | D59: 7.8 | E59: 1 | F59: 566 | G59: 7 | H59: 1.5 | J59: 33 | L59: 44 | M59: 23 | N59: 70 | O59: 1650 | P59: 700 | Q59: 1200 | R59: 5 | S59: 4 | T59: 0 | V59: 0 | W59: 0 | X59: 0 | Y59: 0 | Z59: 0 | AA59: 0 | AB59: 0 | AC59: 0 | AD59: 0 | AF59: -- | AG59: -- | AH59: -- | AI59: -- | AJ59: -- | AK59: -- | AL59: ° | AN59: CANAPA, CUCCHIAIO
A60: Caramella (grammi) | F60: 348 | G60: 82 | J60: 3.5 | L60: 0.4 | T60: 0 | V60: 0 | W60: 0 | X60: 0 | Y60: 0 | Z60: 0 | AA60: 0 | AB60: 0 | AC60: 0 | AD60: 0 | AF60: -- | AG60: -- | AH60: -- | AI60: -- | AJ60: -- | AK60: -- | AN60: 1 caramella classica dura = 4,5 gr netti consumati, togliendo la parte non consumata
A61: Caramella, Happy Cola Haribo (grammi) | C61: 1 caramella | F61: 342 | G61: 76 | J61: 15 | L61: 5 | T61: 0 | V61: 0 | W61: 0 | X61: 0 | Y61: 0 | Z61: 0 | AA61: 0 | AB61: 0 | AC61: 0 | AD61: 0 | AF61: -- | AG61: -- | AH61: -- | AI61: -- | AJ61: -- | AK61: -- | AN61: CARAMELLA HAPPY COLA
A62: Caramella, 2.5 grammi (una) | C62: 1 caramella | D62: 4.12 | F62: 360 | G62: 95.7 | J62: 0 | L62: 0 | T62: 0 | V62: 0 | W62: 0 | X62: 0 | Y62: 0 | Z62: 0 | AA62: 0 | AB62: 0 | AC62: 0 | AD62: 0 | AF62: -- | AG62: -- | AH62: -- | AI62: -- | AJ62: -- | AK62: --
A63: Caramella, 4.12 grammi (una) | C63: 1 caramella | D63: 13 | F63: 360 | G63: 95.7 | J63: 0 | L63: 0 | T63: 0 | V63: 0 | W63: 0 | X63: 0 | Y63: 0 | Z63: 0 | AA63: 0 | AB63: 0 | AC63: 0 | AD63: 0 | AF63: -- | AG63: -- | AH63: -- | AI63: -- | AJ63: -- | AK63: --
A64: Caramella, dura, spicchi di agrumi, da 5 gr (una) | C64: 1 caramella | D64: 5 | F64: 384 | G64: 95 | J64: 0 | L64: 0 | T64: 0 | V64: 0 | W64: 0 | X64: 0 | Y64: 0 | Z64: 0 | AA64: 0 | AB64: 0 | AC64: 0 | AD64: 0 | AF64: -- | AG64: -- | AH64: -- | AI64: -- | AJ64: -- | AK64: -- | AN64: CARAMELLA DURA SPICCHI AGRUMI | AR64: 1 caramella classica dura = 4,5 gr netti consumati, togliendo la parte non consumata
A65: Caramella, Chupa Chups (una) | C65: 1 caramella | D65: 3.19 | F65: 421 | G65: 72 | J65: 13 | L65: 9 | T65: 0 | V65: 0 | W65: 0 | X65: 0 | Y65: 0 | Z65: 0 | AA65: 0 | AB65: 0 | AC65: 0 | AD65: 0 | AF65: -- | AG65: -- | AH65: -- | AI65: -- | AJ65: -- | AK65: --
A66: Caramella, Galatine, Cioccolato (una) | C66: 1 caramella | D66: 3.19 | F66: 403 | G66: 79 | J66: 13 | L66: 4 | T66: 0 | V66: 0 | W66: 0 | X66: 0 | Y66: 0 | Z66: 0 | AA66: 0 | AB66: 0 | AC66: 0 | AD66: 0 | AF66: -- | AG66: -- | AH66: -- | AI66: -- | AJ66: -- | AK66: --
A67: Caramella, Galatine, frutti bosco (una) | C67: 1 caramella | D67: 2.84 | F67: 409 | G67: 76 | J67: 15 | L67: 5 | T67: 0 | V67: 0 | W67: 0 | X67: 0 | Y67: 0 | Z67: 0 | AA67: 0 | AB67: 0 | AC67: 0 | AD67: 0 | AF67: -- | AG67: -- | AH67: -- | AI67: -- | AJ67: -- | AK67: --
A68: Caramella, Galatine, latte (una) | F68: 252 | G68: 71.1 | J68: 2.1 | L68: 17.2 | T68: 0 | V68: 0 | W68: 0 | X68: 0 | Y68: 0 | Z68: 0 | AA68: 0 | AB68: 0 | AC68: 0 | AD68: 0 | AF68: -- | AG68: -- | AH68: -- | AI68: -- | AJ68: -- | AK68: --
A69: Caramella, gelatina frutta (grammi) | C69: 1 caramella | D69: 10 | F69: 252 | G69: 71.1 | J69: 2.1 | L69: 17.2 | T69: 0 | V69: 0 | W69: 0 | X69: 0 | Y69: 0 | Z69: 0 | AA69: 0 | AB69: 0 | AC69: 0 | AD69: 0 | AF69: -- | AG69: -- | AH69: -- | AI69: -- | AJ69: -- | AK69: --
A70: Caramella, gelatina frutta, 10 grammi (una) | C70: 1 caramella | D70: 6.6 | F70: 252 | G70: 71.1 | J70: 2.1 | L70: 17.2 | T70: 0 | V70: 0 | W70: 0 | X70: 0 | Y70: 0 | Z70: 0 | AA70: 0 | AB70: 0 | AC70: 0 | AD70: 0 | AF70: -- | AG70: -- | AH70: -- | AI70: -- | AJ70: -- | AK70: --
A71: Caramella, gelatina frutta, 6.6 grammi (orsetto) (una) | C71: 1 caramella | D71: 3.41 | F71: 252 | G71: 71.1 | J71: 2.1 | L71: 17.2 | T71: 0 | V71: 0 | W71: 0 | X71: 0 | Y71: 0 | Z71: 0 | AA71: 0 | AB71: 0 | AC71: 0 | AD71: 0 | AF71: -- | AG71: -- | AH71: -- | AI71: -- | AJ71: -- | AK71: --
A72: Caramella, gelatina frutta,3.41 grammi (una) | F72: 330 | G72: 78 | J72: 4 | L72: 0 | T72: 0 | V72: 0 | W72: 0 | X72: 0 | Y72: 0 | Z72: 0 | AA72: 0 | AB72: 0 | AC72: 0 | AD72: 0 | AF72: -- | AG72: -- | AH72: -- | AI72: -- | AJ72: -- | AK72: --
A73: Caramella, liquirizia, Haribo | C73: 1 caramella | D73: 2 | F73: 360 | G73: 95.7 | J73: 0 | L73: 0 | T73: 0 | V73: 0 | W73: 0 | X73: 0 | Y73: 0 | Z73: 0 | AA73: 0 | AB73: 0 | AC73: 0 | AD73: 0 | AF73: -- | AG73: -- | AH73: -- | AI73: -- | AJ73: -- | AK73: --
A74: Caramella, miele, 2 grammi (una) | C74: 1 caramella | D74: 4.12 | F74: 360 | G74: 95.7 | J74: 0 | L74: 0 | T74: 0 | V74: 0 | W74: 0 | X74: 0 | Y74: 0 | Z74: 0 | AA74: 0 | AB74: 0 | AC74: 0 | AD74: 0 | AF74: -- | AG74: -- | AH74: -- | AI74: -- | AJ74: -- | AK74: --
A75: Caramella, miele, 4.12 grammi (una) | C75: 1 caramella | D75: 3.41 | F75: 430 | G75: 71.1 | J75: 2.1 | L75: 17.2 | T75: 0 | V75: 0 | W75: 0 | X75: 0 | Y75: 0 | Z75: 0 | AA75: 0 | AB75: 0 | AC75: 0 | AD75: 0 | AF75: -- | AG75: -- | AH75: -- | AI75: -- | AJ75: -- | AK75: --
A76: Caramella, mou (una) | F76: 344 | G76: 83 | J76: 3.35 | L76: 0.3 | T76: 0 | V76: 0 | W76: 0 | X76: 0 | Y76: 0 | Z76: 0 | AA76: 0 | AB76: 0 | AC76: 0 | AD76: 0 | AF76: -- | AG76: -- | AH76: -- | AI76: -- | AJ76: -- | AK76: --
A77: Caramella, mallow (grammi) | C77: 1 caramella | D77: 2 | F77: 409 | G77: 76 | J77: 15 | L77: 5 | T77: 0 | V77: 0 | W77: 0 | X77: 0 | Y77: 0 | Z77: 0 | AA77: 0 | AB77: 0 | AC77: 0 | AD77: 0 | AF77: -- | AG77: -- | AH77: -- | AI77: -- | AJ77: -- | AK77: --
A78: Caramella, tipo Alpenliebe, 2 grammi (una) | C78: 1 caramella | D78: 4.11 | F78: 409 | G78: 76 | J78: 15 | L78: 5 | T78: 0 | V78: 0 | W78: 0 | X78: 0 | Y78: 0 | Z78: 0 | AA78: 0 | AB78: 0 | AC78: 0 | AD78: 0 | AF78: -- | AG78: -- | AH78: -- | AI78: -- | AJ78: -- | AK78: --
A79: Caramella, tipo Alpenliebe, 4.1 grammi (una) | C79: 1 caramella | D79: 0.56 | F79: 359 | G79: 96 | J79: 0 | L79: 0 | T79: 0 | V79: 0 | W79: 0 | X79: 0 | Y79: 0 | Z79: 0 | AA79: 0 | AB79: 0 | AC79: 0 | AD79: 0 | AF79: -- | AG79: -- | AH79: -- | AI79: -- | AJ79: -- | AK79: --
A80: Caramella, tipo Tic-Tac (una) | F80: 17 | G80: 2.3 | J80: 1.7 | L80: 0.2 | T80: 0 | V80: 0 | W80: 0 | X80: 0 | Y80: 0 | Z80: 0 | AA80: 0 | AB80: 0 | AC80: 0 | AD80: 0 | AF80: -- | AG80: -- | AH80: -- | AI80: -- | AJ80: -- | AK80: --
A81: Carciofo | B81: * | E81: 0.6 | F81: 22 | G81: 2.3 | H81: 0 | I81: 3 | J81: 1.7 | K81: -- | L81: 0.2 | M81: 0 | N81: 44 | O81: 90 | P81: 60 | Q81: 376 | R81: 94 | S81: 5.5 | T81: 0 | V81: 0 | W81: 0 | X81: 0 | Y81: 0 | Z81: 0 | AA81: 0 | AB81: 0 | AC81: 0 | AD81: 0 | AF81: -- | AG81: -- | AH81: -- | AI81: -- | AJ81: -- | AK81: --
A82: Carciofo, lessato | B82: * | E82: 1 | F82: 22 | G82: 4.8 | H82: 1 | I82: 3 | J82: 0 | K82: -- | L82: 1.1 | M82: 0 | N82: 21 | O82: 73 | P82: 42 | Q82: 286 | R82: 60 | S82: 8.6 | T82: 0 | V82: 0 | W82: 0 | X82: 0 | Y82: 0 | Z82: 0 | AA82: 0 | AB82: 0 | AC82: 0 | AD82: 0 | AF82: -- | AG82: -- | AH82: -- | AI82: -- | AJ82: -- | AK82: --
A83: Carota | B83: * | E83: 0.95 | F83: 22 | G83: 4.8 | H83: 4.7 | I83: 3 | J83: 0 | K83: -- | L83: 1.1 | M83: 0 | N83: 44 | O83: 35 | P83: 12 | Q83: 220 | R83: 69 | S83: 3.1 | T83: 16.8 | U83: 16.45 | V83: 0 | W83: 3.85 | X83: 0 | Y83: 154 | Z83: 122.5 | AA83: 42 | AB83: 770 | AC83: 241.5 | AD83: 10.85 | AE83: 77 | AF83: -- | AG83: -- | AH83: -- | AI83: -- | AJ83: -- | AK83: 0 | AM83: 350 | AN83: CAROTE | AO83: Mela ridotta a mousse da 936 a 762 (+22,83%)
A84: Carota, lessata | B84: * | E84: 1 | F84: 84 | G84: 18.3 | H84: 3.5 | I84: 2 | J84: 2.6 | K84: -- | L84: 0.5 | M84: 0 | N84: 30 | O84: 30 | P84: 10 | Q84: 235 | R84: 69 | S84: 3 | T84: 0 | V84: 0 | W84: 0 | X84: 0 | Y84: 0 | Z84: 0 | AA84: 0 | AB84: 0 | AC84: 0 | AD84: 0 | AF84: -- | AG84: -- | AH84: -- | AI84: -- | AJ84: -- | AK84: --
A85: Castagna | B85: * | E85: 85 | F85: 196 | G85: 35.5 | H85: 0 | I85: 21 | J85: 1.63 | K85: 107 | L85: 1.25 | M85: 0.235 | T85: 0 | V85: =IF(ISNUMBER(D85),((D85*AM85)/100)*J85,(AM85/100)*J85) -> 0 | W85: 0 | X85: 0 | Y85: 0 | Z85: 0 | AA85: 0 | AB85: 0 | AC85: 0 | AD85: 0 | AF85: -- | AG85: =IF(ISNUMBER($AM85),IF(OR($AL85="*",$AL85="s",$AL85="l"),$V85,"--"),"--") -> -- | AH85: =IF(ISNUMBER($AM85),IF(OR($AL85="*",$AL85="s",$AL85="l",$AL85="°"),$V85,"--"),"--") -> -- | AI85: =IF(ISNUMBER($AM85),IF(OR($AL85="*",$AL85="s",$AL85="l",$AL85="°",$AL85="c"),$V85,"--"),"--") -> -- | AJ85: =IF(ISNUMBER($AM85),IF($AL85="s",$V85,"--"),"--") -> -- | AK85: =IF(ISNUMBER($AM85),$V85,"--") -> --
A86: Castagna, lessa | B86: * | E86: 1 | F86: 131 | G86: 27.76 | H86: 0 | I86: 15 | J86: 2 | K86: 107 | L86: 1.38 | M86: 0.26 | N86: 46 | O86: 99 | P86: 54 | Q86: 715 | R86: 27 | S86: 8.3 | T86: 0 | U86: =IF(ISNUMBER(AE86),IF(ISNUMBER(D86),((D86*AM86)/100)*H86,(AM86/100)*H86),"") ->  | V86: 0 | W86: 0 | X86: =IF(ISNUMBER(D86),((D86*AM86)/100)*M86,(AM86/100)*M86) -> 0 | Y86: 0 | Z86: 0 | AA86: 0 | AB86: 0 | AC86: 0 | AD86: 0 | AF86: -- | AG86: -- | AH86: -- | AI86: -- | AJ86: -- | AK86: --
A87: Cavolfiore | B87: * | E87: 0.66 | F87: 25 | G87: 2.7 | H87: 2.4 | I87: 2 | J87: 3.2 | K87: 103 | L87: 0.2 | M87: 0 | N87: 22 | O87: 44 | P87: 35 | Q87: 299 | R87: 30 | S87: 2.4 | T87: 0 | V87: 0 | W87: 0 | X87: 0 | Y87: 0 | Z87: 0 | AA87: 0 | AB87: 0 | AC87: 0 | AD87: 0 | AF87: -- | AG87: -- | AH87: -- | AI87: -- | AJ87: -- | AK87: -- | AN87: CAVOLFIORE
A88: Cavolino di Bruxelles | B88: * | E88: 1 | F88: 31 | G88: 2.9 | H88: 2.2 | I88: 3 | J88: 4 | K88: 61 | L88: 0.5 | M88: 0.1 | N88: 42 | O88: 69 | P88: 23 | Q88: 389 | R88: 25 | S88: 3.8 | T88: =IF(ISNUMBER(D88),((D88*AM88)/100)*G88,(AM88/100)*G88) -> 0 | V88: 0 | W88: =IF(ISNUMBER(D88),((D88*AM88)/100)*L88,(AM88/100)*L88) -> 0 | X88: 0 | Y88: =IFERROR(IF(ISNUMBER(D88),((D88*AM88)/100)*N88,(AM88/100)*N88),"--") -> 0 | Z88: =IFERROR(IF(ISNUMBER(D88),((D88*AM88)/100)*O88,(AM88/100)*O88),"--") -> 0 | AA88: =IFERROR(IF(ISNUMBER(D88),((D88*AM88)/100)*P88,(AM88/100)*P88),"--") -> 0 | AB88: =IFERROR(IF(ISNUMBER(D88),((D88*AM88)/100)*Q88,(AM88/100)*Q88),"--") -> 0 | AC88: 0 | AD88: =IFERROR(IF(ISNUMBER($D88),(($D88*$AM88)/100)*S88,($AM88/100)*S88),"--") -> 0 | AF88: -- | AG88: -- | AH88: -- | AI88: -- | AJ88: -- | AK88: --
A89: Cavolo cinese | B89: * | E89: 0.9 | F89: 13 | G89: 2.2 | H89: 1.2 | I89: 1 | J89: 1.5 | K89: 69 | L89: 0.2 | M89: 0 | N89: 105 | O89: 37 | P89: 19 | Q89: 252 | R89: 65 | T89: 0 | V89: 0 | W89: 0 | X89: 0 | Y89: 0 | Z89: 0 | AA89: 0 | AB89: 0 | AC89: =IFERROR(IF(ISNUMBER(D89),((D89*AM89)/100)*R89,(AM89/100)*R89),"--") -> 0 | AD89: 0 | AE89: =IF(ISNUMBER(AM89),IF(ISNUMBER(D89),((D89*AM89)/100)*F89,(AM89/100)*F89)," ") ->  | AF89: -- | AG89: -- | AH89: -- | AI89: -- | AJ89: -- | AK89: --
A90: Cece, lessato | B90: * | E90: 1 | F90: 128 | G90: 19 | H90: 4.8 | I90: 10 | J90: 7.3 | K90: 106 | L90: 2.5 | M90: 0.3 | N90: 56 | O90: 95 | P90: 115 | Q90: 302 | R90: 5 | S90: 5.8 | T90: 0 | V90: 0 | W90: 0 | X90: 0 | Y90: 0 | Z90: 0 | AA90: 0 | AB90: 0 | AC90: 0 | AD90: 0 | AF90: =IF(ISNUMBER($AM90),IF($AL90="*",$V90,"--"),"--") -> -- | AG90: -- | AH90: -- | AI90: -- | AJ90: -- | AK90: -- | AL90: l | AN90: CECI
A91: Cece, secco | B91: * | E91: 1 | F91: 378 | G91: 47 | H91: 10.7 | I91: 26 | J91: 7 | K91: 106 | L91: 6.3 | M91: 0.6 | S91: 13.6 | T91: 0 | V91: 0 | W91: 0 | X91: 0 | Y91: 0 | Z91: 0 | AA91: 0 | AB91: 0 | AC91: 0 | AD91: 0 | AF91: -- | AG91: -- | AH91: -- | AI91: -- | AJ91: -- | AK91: -- | AL91: l
A92: Cetriolo | B92: * | E92: 0.9 | F92: 19 | G92: 2 | H92: 1.7 | I92: 1 | J92: 0.7 | K92: 62 | L92: 0.1 | M92: 0 | N92: 14 | O92: 21 | P92: 12 | Q92: 136 | R92: 13 | S92: 0.7 | T92: 0 | V92: 0 | W92: 0 | X92: 0 | Y92: 0 | Z92: 0 | AA92: 0 | AB92: 0 | AC92: 0 | AD92: 0 | AF92: -- | AG92: -- | AH92: -- | AI92: -- | AJ92: -- | AK92: --
A93: Chia, semi | F93: 490 | G93: 43.85 | J93: 19.9 | L93: 15.62 | N93: 631 | O93: 860 | P93: 335 | Q93: 407 | R93: 16 | S93: 34.4 | T93: 0 | V93: 0 | W93: 0 | X93: 0 | Y93: 0 | Z93: 0 | AA93: 0 | AB93: 0 | AC93: 0 | AD93: 0 | AF93: -- | AG93: -- | AH93: -- | AI93: -- | AJ93: -- | AK93: -- | AL93: °
A94: Cioccolato, al latte | B94: * | E94: 1 | F94: 549 | G94: 44.1 | H94: 51.5 | I94: 34 | J94: 10.8 | K94: -- | L94: 40.1 | M94: 18.5 | N94: 189 | O94: 208 | P94: 63 | Q94: 420 | R94: 79 | S94: 3.4 | T94: 0 | V94: 0 | W94: 0 | X94: 0 | Y94: 0 | Z94: 0 | AA94: 0 | AB94: 0 | AC94: 0 | AD94: 0 | AF94: -- | AG94: -- | AH94: -- | AI94: -- | AJ94: -- | AK94: -- | AL94: *
A95: Cioccolato, al latte, con nocciole | F95: 515 | G95: 49.7 | J95: 6.6 | L95: 33.6 | N95: 42 | O95: 162 | P95: 90 | Q95: 425 | R95: 88 | S95: 4.8 | T95: 0 | V95: 0 | W95: 0 | X95: 0 | Y95: 0 | Z95: 0 | AA95: 0 | AB95: 0 | AC95: 0 | AD95: 0 | AF95: -- | AG95: -- | AH95: -- | AI95: -- | AJ95: -- | AK95: -- | AL95: *
A96: Cioccolato, fondente, ordinario | B96: * | E96: 1 | F96: 515 | G96: 49.7 | H96: 47.9 | I96: 22 | J96: 6.6 | K96: -- | L96: 33.6 | M96: 18.5 | N96: 51 | O96: 186 | P96: 146 | Q96: 300 | R96: 24 | S96: 3.4 | T96: 0 | V96: 0 | W96: 0 | X96: 0 | Y96: 0 | Z96: 0 | AA96: 0 | AB96: 0 | AC96: 0 | AD96: 0 | AF96: -- | AG96: -- | AH96: -- | AI96: -- | AJ96: -- | AK96: -- | AL96: *
A97: Cioccolato, fondente, 56%, senza zucchero, Coop | B97: * | F97: 438 | G97: 5.2 | H97: 5.2 | J97: 5.9 | L97: 30 | M97: 18 | R97: 0 | S97: 15 | T97: 0 | V97: 0 | W97: 0 | X97: 0 | Y97: 0 | Z97: 0 | AA97: 0 | AB97: 0 | AC97: 0 | AD97: 0 | AF97: -- | AG97: -- | AH97: -- | AI97: -- | AJ97: -- | AK97: -- | AN97: CIOCCOLATO FONDENTE SENZA ZUCCHERO
A98: Cioccolato, fondente, 50% | B98: * | E98: 1 | F98: 515 | G98: 49.7 | H98: 47.9 | I98: 22 | J98: 6.6 | K98: -- | L98: 33.6 | M98: 18.5 | N98: 56 | O98: 206 | P98: 146 | Q98: 559 | R98: 24 | S98: 7 | T98: 0 | V98: 0 | W98: 0 | X98: 0 | Y98: 0 | Z98: 0 | AA98: 0 | AB98: 0 | AC98: 0 | AD98: 0 | AF98: -- | AG98: -- | AH98: -- | AI98: -- | AJ98: -- | AK98: -- | AL98: * | AN98: CIOCCOLATO FONDENTE
A99: Cioccolato, fondente, 70% | B99: * | E99: 1 | F99: 515 | G99: 49.7 | H99: 36.7 | I99: 23 | J99: 6.6 | K99: -- | L99: 33.6 | M99: 22 | N99: 62 | O99: 260 | P99: 292 | Q99: 715 | R99: 10 | S99: 8 | T99: 0 | V99: 0 | W99: 0 | X99: 0 | Y99: 0 | Z99: 0 | AA99: 0 | AB99: 0 | AC99: 0 | AD99: 0 | AF99: -- | AG99: -- | AH99: -- | AI99: -- | AJ99: -- | AK99: -- | AL99: *
A100: Cioccolato, fondente, 85% | B100: * | E100: 1 | F100: 584 | G100: 19 | H100: 24 | I100: 15 | J100: 12.5 | K100: -- | L100: 46 | M100: 24.5 | N100: 62 | O100: 260 | P100: 292 | Q100: 715 | R100: 20 | S100: 8 | T100: 0 | V100: 0 | W100: 0 | X100: 0 | Y100: 0 | Z100: 0 | AA100: 0 | AB100: 0 | AC100: 0 | AD100: 0 | AF100: -- | AG100: -- | AH100: -- | AI100: -- | AJ100: -- | AK100: -- | AL100: *
A101: Cioccolato, fondente, 90% | F101: 592 | G101: 14 | J101: 10 | L101: 55 | N101: =128*0.9 -> 115.2 | O101: =734*0.9 -> 660.6 | P101: =475*0.9 -> 427.5 | Q101: ? | R101: ? | S101: 8 | T101: 0 | V101: 0 | W101: 0 | X101: 0 | Y101: 0 | Z101: 0 | AA101: 0 | AB101: -- | AC101: -- | AD101: 0 | AF101: -- | AG101: -- | AH101: -- | AI101: -- | AJ101: -- | AK101: -- | AL101: *
A102: Cioccolato, fondente, 99% | F102: 592 | G102: 14 | J102: 10 | L102: 55 | N102: =128*0.99 -> 126.72 | O102: =734*0.99 -> 726.66 | P102: =475*0.99 -> 470.25 | Q102: ? | R102: ? | S102: 8 | T102: 0 | V102: 0 | W102: 0 | X102: 0 | Y102: 0 | Z102: 0 | AA102: 0 | AB102: -- | AC102: -- | AD102: 0 | AF102: -- | AG102: -- | AH102: -- | AI102: -- | AJ102: -- | AK102: -- | AL102: *
A103: Cipolla | B103: * | E103: 0.83 | F103: 24 | G103: 5.2 | H103: 4.2 | I103: 3 | J103: 0 | K103: 22 | L103: 1 | M103: 0 | N103: 23 | O103: 29 | P103: 10 | Q103: 146 | R103: 4 | S103: 1.7 | T103: 0 | V103: 0 | W103: 0 | X103: 0 | Y103: 0 | Z103: 0 | AA103: 0 | AB103: 0 | AC103: 0 | AD103: 0 | AF103: -- | AG103: -- | AH103: -- | AI103: -- | AJ103: -- | AK103: -- | AN103: CIPOLLA
A104: Cipollotto | B104: * | E104: 0.83 | F104: 24 | G104: 5.2 | H104: 4.2 | I104: 3 | J104: 0 | K104: 22 | L104: 1 | M104: 0 | N104: 23 | O104: 29 | P104: 10 | Q104: 146 | R104: 4 | S104: 1.7 | T104: 0 | V104: 0 | W104: 0 | X104: 0 | Y104: 0 | Z104: 0 | AA104: 0 | AB104: 0 | AC104: 0 | AD104: 0 | AF104: -- | AG104: -- | AH104: -- | AI104: -- | AJ104: -- | AK104: --
A105: Cornetto, ripieno marmellata | F105: 380 | G105: 60 | J105: 4.9 | L105: 14 | T105: 0 | V105: 0 | W105: 0 | X105: 0 | Y105: 0 | Z105: 0 | AA105: 0 | AB105: 0 | AC105: 0 | AD105: 0 | AF105: -- | AG105: -- | AH105: -- | AI105: -- | AJ105: -- | AK105: --
A106: Corn Flakes (Kellogg's Special K) | F106: 375 | G106: 79 | J106: 9 | L106: 1.5 | S106: 4.5 | T106: 0 | V106: 0 | W106: 0 | X106: 0 | Y106: 0 | Z106: 0 | AA106: 0 | AB106: 0 | AC106: 0 | AD106: 0 | AF106: -- | AG106: -- | AH106: -- | AI106: -- | AJ106: -- | AK106: -- | AN106: CORN FLAKES
A107: Costa | B107: * | E107: 0.82 | F107: 12 | G107: 1.5 | H107: 0.5 | I107: 1 | J107: 1.3 | K107: 57 | L107: 0.1 | M107: 0 | N107: 67 | O107: 29 | P107: 81 | Q107: 220 | R107: 10 | S107: 1.6 | T107: 0 | V107: 0 | W107: 0 | X107: 0 | Y107: 0 | Z107: 0 | AA107: 0 | AB107: 0 | AC107: 0 | AD107: 0 | AF107: -- | AG107: -- | AH107: -- | AI107: -- | AJ107: -- | AK107: --
A108: Costina | B108: * | E108: 0.82 | F108: 12 | G108: 1.5 | H108: 0.5 | I108: 1 | J108: 1.3 | K108: 57 | L108: 0.1 | M108: 0 | N108: 67 | O108: 29 | P108: 81 | Q108: 220 | R108: 10 | S108: 1.6 | T108: 0 | V108: 0 | W108: 0 | X108: 0 | Y108: 0 | Z108: 0 | AA108: 0 | AB108: 0 | AC108: 0 | AD108: 0 | AF108: -- | AG108: -- | AH108: -- | AI108: -- | AJ108: -- | AK108: --
A109: Cracker, grassi | F109: 441 | G109: 66.2 | J109: 10 | L109: 14 | R109: 720 | T109: 0 | V109: 0 | W109: 0 | X109: 0 | Y109: 0 | Z109: 0 | AA109: 0 | AB109: 0 | AC109: 0 | AD109: 0 | AF109: -- | AG109: -- | AH109: -- | AI109: -- | AJ109: -- | AK109: -- | AL109: c | AN109: 1 pacchetto = 33,7 gr.
A110: Cracker, grassi, un cracker | C110: 1 cracker | D110: 7 | F110: 441 | G110: 66.2 | J110: 10 | L110: 14 | R110: 720 | T110: 0 | V110: 0 | W110: 0 | X110: 0 | Y110: 0 | Z110: 0 | AA110: 0 | AB110: 0 | AC110: 0 | AD110: 0 | AF110: -- | AG110: -- | AH110: -- | AI110: -- | AJ110: -- | AK110: -- | AL110: c
A111: Cracker, magro, grammi | B111: * | E111: 1 | F111: 377 | G111: 79 | H111: 2 | I111: 39 | J111: 11.8 | K111: 54 | L111: 1.5 | M111: 0.4 | N111: =14*(378/271) -> 19.52767528 | O111: 111 | P111: 26 | Q111: 115 | R111: 1000 | S111: 4 | T111: 0 | V111: 0 | W111: 0 | X111: 0 | Y111: 0 | Z111: 0 | AA111: 0 | AB111: 0 | AC111: 0 | AD111: 0 | AF111: -- | AG111: -- | AH111: -- | AI111: -- | AJ111: -- | AK111: -- | AL111: c | AN111: CRACKERS (GR.)
A112: Cracker, magro, una confezione | B112: * | C112: 5 crackers | D112: 32 | E112: 1 | F112: 377 | G112: 79 | H112: 2 | I112: 39 | J112: 11.8 | K112: 54 | L112: 1.5 | M112: 0.4 | N112: =14*(378/271) -> 19.52767528 | O112: 111 | P112: 26 | Q112: 115 | R112: 1000 | S112: 4 | T112: 25.28 | U112: 0.64 | V112: 3.776 | W112: 0.48 | X112: 0.128 | Y112: 6.248856089 | Z112: 35.52 | AA112: 8.32 | AB112: 36.8 | AC112: 320 | AD112: 1.28 | AE112: 120.64 | AF112: -- | AG112: -- | AH112: -- | AI112: 3.776 | AJ112: -- | AK112: 3.776 | AL112: c | AM112: 1 | AN112: CRACKERS (1 CONF.) | AP112: 1 confezione = 32 gr.
A113: Crostatina pasticceria, con marmellata | F113: 466 | G113: 67.22 | J113: 4.73 | L113: 19.76 | T113: 0 | V113: 0 | W113: 0 | X113: 0 | Y113: 0 | Z113: 0 | AA113: 0 | AB113: 0 | AC113: 0 | AD113: 0 | AF113: -- | AG113: -- | AH113: -- | AI113: -- | AJ113: -- | AK113: -- | AL113: c
A114: Crauti | B114: * | E114: 0.95 | F114: 19 | G114: 4.3 | H114: 1.78 | J114: 0.9 | L114: 0.1 | M114: 0 | N114: 30 | O114: 20 | P114: 13 | Q114: 170 | R114: 661 | S114: 2.9 | T114: =IF(ISNUMBER(D114),((D114*AM114)/100)*G114,(AM114/100)*G114) -> 0 | V114: 0 | W114: =IF(ISNUMBER(D114),((D114*AM114)/100)*L114,(AM114/100)*L114) -> 0 | X114: 0 | Y114: =IFERROR(IF(ISNUMBER(D114),((D114*AM114)/100)*N114,(AM114/100)*N114),"--") -> 0 | Z114: =IFERROR(IF(ISNUMBER(D114),((D114*AM114)/100)*O114,(AM114/100)*O114),"--") -> 0 | AA114: =IFERROR(IF(ISNUMBER(D114),((D114*AM114)/100)*P114,(AM114/100)*P114),"--") -> 0 | AB114: =IFERROR(IF(ISNUMBER(D114),((D114*AM114)/100)*Q114,(AM114/100)*Q114),"--") -> 0 | AC114: =IFERROR(IF(ISNUMBER(D114),((D114*AM114)/100)*R114,(AM114/100)*R114),"--") -> 0 | AD114: =IFERROR(IF(ISNUMBER($D114),(($D114*$AM114)/100)*S114,($AM114/100)*S114),"--") -> 0 | AE114: =IF(ISNUMBER(AM114),IF(ISNUMBER(D114),((D114*AM114)/100)*F114,(AM114/100)*F114)," ") ->  | AF114: -- | AG114: -- | AH114: -- | AI114: -- | AJ114: -- | AK114: --
A115: Fagiolino | B115: * | E115: 1 | F115: 18 | G115: 2.4 | H115: 1.4 | I115: 3 | J115: 2.1 | K115: 88 | L115: 0.1 | M115: 0 | N115: 37 | O115: 38 | P115: 44 | Q115: 280 | R115: 6 | S115: 2.7 | T115: 0 | V115: 0 | W115: 0 | X115: 0 | Y115: 0 | Z115: 0 | AA115: 0 | AB115: 0 | AC115: 0 | AD115: 0 | AF115: -- | AG115: -- | AH115: -- | AI115: -- | AJ115: -- | AK115: -- | AL115: l | AN115: FAGIOLINI
A116: Fagiolo, fresco | B116: * | E116: 1 | F116: 133 | G116: 22.7 | H116: 1.2 | J116: 10.2 | L116: 0 | M116: 0 | N116: 44 | O116: 180 | P116: 0 | Q116: 650 | R116: 2 | S116: 4.8 | T116: 0 | V116: 0 | W116: 0 | X116: 0 | Y116: 0 | Z116: 0 | AA116: 0 | AB116: 0 | AC116: 0 | AD116: 0 | AF116: -- | AG116: -- | AH116: -- | AI116: -- | AJ116: -- | AK116: -- | AL116: l
A117: Fagiolo, lessato | B117: * | E117: 1 | F117: 80 | G117: 6.3 | H117: 8 | I117: 8 | K117: 71 | M117: 0 | N117: 31 | O117: 90 | P117: 160 | Q117: 289 | R117: 294 | S117: 5.3 | T117: 0 | V117: 0 | W117: 0 | X117: 0 | Y117: 0 | Z117: 0 | AA117: 0 | AB117: 0 | AC117: 0 | AD117: 0 | AF117: -- | AG117: -- | AH117: -- | AI117: -- | AJ117: -- | AK117: -- | AL117: l | AN117: FAGIOLI
A118: Fagiolo, secco | B118: * | E118: 1 | F118: 291 | G118: 47.5 | H118: 2.1 | I118: 20 | J118: 20.2 | K118: 104 | L118: 2 | M118: 0 | N118: 102 | O118: 464 | P118: 163 | Q118: 1478 | R118: 3 | S118: 17.5 | T118: 0 | V118: 0 | W118: 0 | X118: 0 | Y118: 0 | Z118: 0 | AA118: 0 | AB118: 0 | AC118: 0 | AD118: 0 | AF118: -- | AG118: -- | AH118: -- | AI118: -- | AJ118: -- | AK118: -- | AL118: l
A119: Farina, di frumento, integrale | F119: 321 | G119: 64.2 | J119: 12 | L119: 3 | N119: 34 | O119: 357 | P119: 137 | Q119: 363 | R119: 2 | S119: 10.7 | T119: 0 | V119: 0 | W119: 0 | X119: 0 | Y119: 0 | Z119: 0 | AA119: 0 | AB119: 0 | AC119: 0 | AD119: 0 | AF119: -- | AG119: -- | AH119: -- | AI119: -- | AJ119: -- | AK119: -- | AL119: c
A120: Farina, di frumento, integrale, un cucchiaino | C120: un cucchiaino | D120: 4 | F120: 321 | G120: 64.2 | J120: 12 | L120: 3 | N120: 34 | O120: 357 | P120: 137 | Q120: 363 | R120: 2 | S120: 10.7 | T120: 0 | V120: 0 | W120: 0 | X120: 0 | Y120: 0 | Z120: 0 | AA120: 0 | AB120: 0 | AC120: 0 | AD120: 0 | AF120: -- | AG120: -- | AH120: -- | AI120: -- | AJ120: -- | AK120: -- | AL120: c
A121: Farina di frumento, tipo 0 | F121: 320 | G121: 69.5 | J121: 9 | L121: 0.9 | N121: 20 | O121: 112 | P121: 30 | Q121: 138 | R121: 2 | S121: 2.4 | T121: 0 | V121: 0 | W121: 0 | X121: 0 | Y121: 0 | Z121: 0 | AA121: 0 | AB121: 0 | AC121: 0 | AD121: 0 | AF121: -- | AG121: -- | AH121: -- | AI121: -- | AJ121: -- | AK121: -- | AL121: c
A122: Farina di frumento, tipo 0, un cucchiaino | C122: un cucchiaino | D122: 4 | F122: 320 | G122: 69.5 | J122: 9 | L122: 0.9 | N122: 20 | O122: 112 | P122: 30 | Q122: 138 | R122: 2 | S122: 2.4 | T122: 0 | V122: 0 | W122: 0 | X122: 0 | Y122: 0 | Z122: 0 | AA122: 0 | AB122: 0 | AC122: 0 | AD122: 0 | AF122: =IF(ISNUMBER($AM122),IF($AL122="*",$V122,"--"),"--") -> -- | AG122: -- | AH122: -- | AI122: -- | AJ122: -- | AK122: -- | AL122: c
A123: Farina, di grano saraceno | F123: 341 | G123: 74.5 | J123: 8.3 | L123: 1.1 | N123: 12 | O123: 150 | P123: 231 | Q123: 220 | R123: 1 | S123: 2.1 | T123: 0 | V123: 0 | W123: 0 | X123: 0 | Y123: 0 | Z123: 0 | AA123: 0 | AB123: 0 | AC123: 0 | AD123: 0 | AF123: -- | AG123: -- | AH123: -- | AI123: -- | AJ123: -- | AK123: -- | AL123: c
A124: Farina, di grano saraceno, un cucchiaino, molto abbondante | C124: un cucchiaino | D124: 5 | F124: 341 | G124: 74.5 | J124: 8.3 | L124: 1.1 | N124: 12 | O124: 150 | P124: 231 | Q124: 220 | R124: 1 | S124: 2.1 | T124: 0 | V124: 0 | W124: 0 | X124: 0 | Y124: 0 | Z124: 0 | AA124: 0 | AB124: 0 | AC124: 0 | AD124: 0 | AF124: -- | AG124: -- | AH124: -- | AI124: -- | AJ124: -- | AK124: -- | AL124: c
A125: Fava | F125: 52 | G125: 7.7 | J125: 4.1 | L125: 0.8 | N125: 22 | O125: 95 | P125: 38 | Q125: 200 | R125: 50 | S125: 4.2 | T125: 0 | V125: 0 | W125: 0 | X125: 0 | Y125: 0 | Z125: 0 | AA125: 0 | AB125: 0 | AC125: 0 | AD125: 0 | AF125: -- | AG125: -- | AH125: -- | AI125: -- | AJ125: -- | AK125: -- | AL125: l
A126: Fava, secca sbucciata | F126: 341 | G126: 46.5 | J126: 27 | L126: 2.4 | N126: 103 | O126: 421 | P126: 192 | Q126: 1062 | R126: 13 | S126: 25 | T126: 0 | V126: 0 | W126: 0 | X126: 0 | Y126: 0 | Z126: 0 | AA126: 0 | AB126: 0 | AC126: 0 | AD126: 0 | AF126: -- | AG126: -- | AH126: -- | AI126: -- | AJ126: -- | AK126: -- | AL126: l
A127: Fegatini di pollo e cuore (Carrefour) | F127: 122 | G127: 0 | J127: 20.5 | L127: 4.5 | N127: 8 | O127: 197 | P127: 19 | Q127: 230 | R127: 71 | S127: 0 | T127: 0 | V127: 0 | W127: 0 | X127: 0 | Y127: 0 | Z127: 0 | AA127: 0 | AB127: 0 | AC127: 0 | AD127: 0 | AF127: -- | AG127: -- | AH127: -- | AI127: -- | AJ127: -- | AK127: -- | AL127: * | AN127: FEGATINI
A128: Fegato, bovino | B128: * | E128: 1 | F128: 142 | G128: 2 | H128: 0 | I128: 3 | J128: 20 | K128: 155 | L128: 5 | M128: 1.2 | N128: 5 | O128: 387 | P128: 18 | Q128: 313 | R128: 49 | S128: 0 | T128: 0 | V128: 0 | W128: 0 | X128: 0 | Y128: 0 | Z128: 0 | AA128: 0 | AB128: 0 | AC128: 0 | AD128: 0 | AF128: -- | AG128: -- | AH128: -- | AI128: -- | AJ128: -- | AK128: -- | AL128: * | AN128: FEGATO
A129: Fico | B129: * | E129: 0.75 | F129: 62 | G129: 15.5 | H129: 16.3 | I129: 6 | J129: 0.3 | K129: 78 | L129: 0.3 | M129: 0.1 | N129: 35 | O129: 14 | P129: 17 | Q129: 270 | R129: 1 | S129: 2.9 | T129: 0 | V129: 0 | W129: 0 | X129: 0 | Y129: 0 | Z129: 0 | AA129: 0 | AB129: 0 | AC129: 0 | AD129: 0 | AF129: -- | AG129: -- | AH129: -- | AI129: -- | AJ129: -- | AK129: -- | AN129: FICO | AO129: 1 fico = 25 g
A130: Fico secco | B130: * | E130: 1 | F130: 277 | G130: 58.4 | H130: 47.9 | I130: 30 | J130: 5.2 | K130: 52 | L130: 4.2 | M130: 0.1 | N130: 162 | O130: 67 | P130: 68 | Q130: 1010 | R130: 1 | S130: 9.8 | T130: 0 | V130: 0 | W130: 0 | X130: 0 | Y130: 0 | Z130: 0 | AA130: 0 | AB130: 0 | AC130: 0 | AD130: 0 | AF130: -- | AG130: -- | AH130: -- | AI130: -- | AJ130: -- | AK130: -- | AN130: FICO SECCO | AO130: 1 fico secco = 20 gr
A131: Finocchio | B131: * | E131: 0.59 | F131: 16 | G131: 3.2 | H131: 0 | I131: 2 | J131: 0.5 | K131: -- | L131: 0.3 | M131: 0 | N131: 49 | O131: 50 | P131: 17 | Q131: 414 | R131: 52 | S131: 3.1 | T131: 0 | V131: 0 | W131: 0 | X131: 0 | Y131: 0 | Z131: 0 | AA131: 0 | AB131: 0 | AC131: 0 | AD131: 0 | AF131: -- | AG131: -- | AH131: -- | AI131: -- | AJ131: -- | AK131: --
A132: Formaggio, Pecorino | F132: 405 | G132: 0 | J132: 27 | L132: 33 | N132: 900 | O132: 589 | P132: 40 | Q132: 86 | R132: 1200 | S132: 0 | T132: 0 | V132: 0 | W132: 0 | X132: 0 | Y132: 0 | Z132: 0 | AA132: 0 | AB132: 0 | AC132: 0 | AD132: 0 | AF132: -- | AG132: -- | AH132: -- | AI132: -- | AJ132: -- | AK132: -- | AL132: *
A133: Formaggio, non stagionato (provolone), grasso 30% max | F133: 431 | G133: 0 | J133: 37.7 | L133: 31.1 | N133: 756 | O133: 496 | P133: 28 | Q133: 138 | R133: 876 | S133: 0 | T133: 0 | V133: 0 | W133: 0 | X133: 0 | Y133: 0 | Z133: 0 | AA133: 0 | AB133: 0 | AC133: 0 | AD133: 0 | AF133: -- | AG133: -- | AH133: -- | AI133: -- | AJ133: -- | AK133: -- | AL133: *
A134: Fragola | B134: * | E134: 1 | F134: 27 | G134: 5.9 | H134: 4.9 | I134: 2 | J134: 0.9 | K134: 48 | L134: 0.4 | M134: 0 | N134: 16 | O134: 24 | P134: 13 | Q134: 153 | R134: 1 | S134: 2 | T134: 0 | V134: 0 | W134: 0 | X134: 0 | Y134: 0 | Z134: 0 | AA134: 0 | AB134: 0 | AC134: 0 | AD134: 0 | AF134: -- | AG134: -- | AH134: -- | AI134: -- | AJ134: -- | AK134: --
A135: Funghi, surgelati | B135: * | E135: 1 | F135: 39 | G135: 0.5 | H135: 1.7 | I135: 2 | J135: 5.4 | K135: 56 | L135: 0.4 | M135: 0 | N135: 18 | O135: 120 | P135: 9 | Q135: 320 | R135: 5 | S135: 1 | T135: 0 | V135: 0 | W135: 0 | X135: 0 | Y135: 0 | Z135: 0 | AA135: 0 | AB135: 0 | AC135: 0 | AD135: 0 | AF135: -- | AG135: -- | AH135: -- | AI135: -- | AJ135: -- | AK135: -- | AL135: °
A136: Galletta, Kamut | F136: 374 | G136: 67 | J136: 17 | L136: 2.2 | S136: 1.2 | T136: 0 | V136: 0 | W136: 0 | X136: 0 | Y136: 0 | Z136: 0 | AA136: 0 | AB136: 0 | AC136: 0 | AD136: 0 | AF136: -- | AG136: -- | AH136: -- | AI136: -- | AJ136: -- | AK136: -- | AL136: c | AN136: GALLETTE
A137: Galletta, Kamut (una) | C137: una galletta | D137: 6.5 | F137: 374 | G137: 67 | J137: 17 | L137: 2.2 | S137: 1.2 | T137: 0 | V137: 0 | W137: 0 | X137: 0 | Y137: 0 | Z137: 0 | AA137: 0 | AB137: 0 | AC137: 0 | AD137: 0 | AF137: -- | AG137: -- | AH137: -- | AI137: -- | AJ137: -- | AK137: -- | AL137: c
A138: Gelato, al latte | F138: 240 | G138: 25.8 | J138: 5.2 | L138: 13.6 | S138: 0.55 | T138: 0 | V138: 0 | W138: 0 | X138: 0 | Y138: 0 | Z138: 0 | AA138: 0 | AB138: 0 | AC138: 0 | AD138: 0 | AF138: -- | AG138: -- | AH138: -- | AI138: -- | AJ138: -- | AK138: --
A139: Germe di grano (grammi) | B139: * | E139: 1 | F139: 347 | G139: 37.1 | H139: 0 | I139: 21 | J139: 27.9 | K139: 123 | L139: 9.7 | M139: 1.7 | N139: 39 | O139: 842 | P139: 239 | Q139: 827 | R139: 12 | S139: 13.2 | T139: 0 | V139: 0 | W139: 0 | X139: 0 | Y139: 0 | Z139: 0 | AA139: 0 | AB139: 0 | AC139: 0 | AD139: 0 | AF139: -- | AG139: -- | AH139: -- | AI139: -- | AJ139: -- | AK139: -- | AL139: °
A140: Germe di grano (1 cucchiaio da tavola) | B140: * | C140: un cucchiaio da tavola non eccessivamente pieno | D140: 6 | E140: 1 | F140: 347 | G140: 37.1 | H140: 0 | I140: 21 | J140: 27.9 | K140: 123 | L140: 9.7 | M140: 1.7 | N140: 39 | O140: 842 | P140: 239 | Q140: 827 | R140: 12 | S140: 13.2 | T140: 0 | V140: 0 | W140: 0 | X140: 0 | Y140: 0 | Z140: 0 | AA140: 0 | AB140: 0 | AC140: 0 | AD140: 0 | AF140: -- | AG140: -- | AH140: -- | AI140: -- | AJ140: -- | AK140: -- | AL140: ° | AN140: GERME GRANO
A141: Germe di grano (1 cucchiaino) | B141: * | C141: un cucchiaino non eccessivamente pieno | D141: =(17+18+18+17+18+18)/60 -> 1.766666667 | E141: 1 | F141: 347 | G141: 37.1 | H141: 0 | I141: 21 | J141: 27.9 | K141: 123 | L141: 9.7 | M141: 1.7 | N141: 39 | O141: 842 | P141: 239 | Q141: 827 | R141: 12 | S141: 13.2 | T141: 0 | V141: 0 | W141: 0 | X141: 0 | Y141: 0 | Z141: 0 | AA141: 0 | AB141: 0 | AC141: 0 | AD141: 0 | AF141: -- | AG141: -- | AH141: -- | AI141: -- | AJ141: -- | AK141: -- | AL141: °
A142: Girasole, seme | B142: * | E142: 1 | F142: 557 | G142: 26 | H142: 2.6 | I142: 0 | J142: 20.2 | K142: 88 | L142: 45.6 | M142: 4.5 | N142: 78 | O142: 660 | P142: 325 | Q142: 710 | R142: 9 | S142: 8.6 | T142: 0 | V142: 0 | W142: 0 | X142: 0 | Y142: 0 | Z142: 0 | AA142: 0 | AB142: 0 | AC142: 0 | AD142: 0 | AF142: -- | AG142: -- | AH142: -- | AI142: -- | AJ142: -- | AK142: -- | AL142: ° | AN142: GIRASOLE | AO142: 1 mini-misurino = 2 gr.
A143: Glucosio | F143: 366.666 | G143: =(55/60)*100 -> 91.66666667 | J143: 0 | L143: 0 | N143: 0 | O143: 0 | P143: 0 | Q143: 0 | R143: 0 | S143: 0 | T143: 0 | V143: 0 | W143: 0 | X143: 0 | Y143: 0 | Z143: 0 | AA143: 0 | AB143: 0 | AC143: 0 | AD143: 0 | AF143: -- | AG143: -- | AH143: -- | AI143: -- | AJ143: -- | AK143: --
A144: Glucosio, misurino | C144: un misurino | D144: 4.2 | F144: 366.666 | G144: =(55/60)*100 -> 91.66666667 | J144: 0 | L144: 0 | N144: 0 | O144: 0 | P144: 0 | Q144: 0 | R144: 0 | S144: 0 | T144: 0 | V144: 0 | W144: 0 | X144: 0 | Y144: 0 | Z144: 0 | AA144: 0 | AB144: 0 | AC144: 0 | AD144: 0 | AF144: -- | AG144: -- | AH144: -- | AI144: -- | AJ144: -- | AK144: -- | AN144: GLUCOSIO, 1 MISURINO
A145: Girasole, cucchiaio (uno) | B145: * | C145: un cucchiaio | D145: =55/4 -> 13.75 | E145: 1 | F145: 557 | G145: 26 | H145: 2.6 | I145: 0 | J145: 20.2 | K145: 88 | L145: 45.6 | M145: 4.5 | N145: 78 | O145: 660 | P145: 325 | Q145: 0 | R145: 0 | S145: 8.6 | T145: 0 | V145: 0 | W145: 0 | X145: 0 | Y145: 0 | Z145: 0 | AA145: 0 | AB145: 0 | AC145: 0 | AD145: 0 | AF145: -- | AG145: -- | AH145: -- | AI145: -- | AJ145: -- | AK145: -- | AL145: °
A146: Goji, bacche essiccate | F146: 356 | G146: 58.7 | J146: 11.2 | L146: 2.4 | S146: 13 | T146: 0 | V146: 0 | W146: 0 | X146: 0 | Y146: 0 | Z146: 0 | AA146: 0 | AB146: 0 | AC146: 0 | AD146: 0 | AF146: -- | AG146: -- | AH146: -- | AI146: -- | AJ146: -- | AK146: -- | AL146: °
A147: Gorgonzola | F147: 346 | G147: 0 | J147: 22 | L147: 28.6 | S147: 0 | T147: 0 | V147: 0 | W147: 0 | X147: 0 | Y147: 0 | Z147: 0 | AA147: 0 | AB147: 0 | AC147: 0 | AD147: 0 | AF147: -- | AG147: -- | AH147: -- | AI147: -- | AJ147: -- | AK147: -- | AL147: *
A148: Grano saraceno | F148: 321 | G148: 60 | J148: 11.7 | L148: 8 | N148: 18 | O148: 347 | P148: 231 | Q148: 460 | R148: 1 | S148: 10 | T148: 0 | V148: 0 | W148: 0 | X148: 0 | Y148: 0 | Z148: 0 | AA148: 0 | AB148: 0 | AC148: 0 | AD148: 0 | AF148: -- | AG148: -- | AH148: -- | AI148: -- | AJ148: -- | AK148: -- | AL148: c | AN148: GRANO SARACENO
A149: Hamburger (grammi) | F149: 240 | G149: 5.2 | J149: 19.5 | L149: 10 | S149: 0 | T149: 0 | V149: =IF(ISNUMBER(D149),((D149*AM149)/100)*J149,(AM149/100)*J149) -> 0 | W149: 0 | X149: 0 | Y149: 0 | Z149: 0 | AA149: 0 | AB149: 0 | AC149: 0 | AD149: 0 | AF149: -- | AG149: =IF(ISNUMBER($AM149),IF(OR($AL149="*",$AL149="s",$AL149="l"),$V149,"--"),"--") -> -- | AH149: =IF(ISNUMBER($AM149),IF(OR($AL149="*",$AL149="s",$AL149="l",$AL149="°"),$V149,"--"),"--") -> -- | AI149: =IF(ISNUMBER($AM149),IF(OR($AL149="*",$AL149="s",$AL149="l",$AL149="°",$AL149="c"),$V149,"--"),"--") -> -- | AJ149: =IF(ISNUMBER($AM149),IF($AL149="s",$V149,"--"),"--") -> -- | AK149: =IF(ISNUMBER($AM149),$V149,"--") -> -- | AL149: *
A150: Hamburger (uno, medio) | C150: uno, medio | D150: 110 | F150: 240 | G150: 5.2 | J150: 19.5 | L150: 10 | S150: 0 | T150: 0 | U150: =IF(ISNUMBER(AE150),IF(ISNUMBER(D150),((D150*AM150)/100)*H150,(AM150/100)*H150),"") ->  | V150: 0 | W150: 0 | X150: =IF(ISNUMBER(D150),((D150*AM150)/100)*M150,(AM150/100)*M150) -> 0 | Y150: 0 | Z150: 0 | AA150: 0 | AB150: 0 | AC150: 0 | AD150: 0 | AF150: -- | AG150: -- | AH150: -- | AI150: -- | AJ150: -- | AK150: -- | AL150: *
A151: Hummus | B151: * | E151: 1 | F151: 207 | G151: 10 | H151: 0.3 | I151: 8 | J151: 5.9 | K151: 117 | L151: 15 | M151: 1.1 | N151: 102 | O151: 124 | P151: 56 | Q151: 228 | R151: 379 | S151: 4.6 | T151: 0 | V151: 0 | W151: 0 | X151: 0 | Y151: 0 | Z151: 0 | AA151: 0 | AB151: 0 | AC151: 0 | AD151: 0 | AF151: -- | AG151: -- | AH151: -- | AI151: -- | AJ151: -- | AK151: -- | AL151: l | AN151: HUMMUS CARREFOUR | AP151: Hummus Noah 339 cal, 27,5 grassi, 13,9 carboidrati, 6,5 proteine
A152: Indivia belga | B152: * | E152: 0.9 | F152: 18 | G152: 1.1 | H152: 0.3 | I152: 0 | J152: 1.8 | K152: 57 | L152: 0 | M152: 0 | N152: 52 | O152: 28 | P152: 15 | Q152: 380 | R152: 2 | S152: 3.1 | T152: 0 | V152: 0 | W152: 0 | X152: 0 | Y152: 0 | Z152: 0 | AA152: 0 | AB152: 0 | AC152: 0 | AD152: 0 | AF152: -- | AG152: -- | AH152: -- | AI152: -- | AJ152: -- | AK152: -- | AN152: INDIVIA
A153: Kaki | F153: 65 | G153: 13.6 | J153: 0.6 | L153: 0.3 | N153: 8 | O153: 17 | P153: 9 | Q153: 190 | R153: 1 | S153: 3.6 | T153: 0 | V153: 0 | W153: 0 | X153: 0 | Y153: 0 | Z153: 0 | AA153: 0 | AB153: 0 | AC153: 0 | AD153: 0 | AF153: -- | AG153: -- | AH153: -- | AI153: -- | AJ153: -- | AK153: --
A154: Ketchup | F154: 79 | L154: 0 | N154: 18 | O154: 33 | P154: 19 | Q154: 382 | R154: 907 | S154: 0.3 | T154: 0 | V154: 0 | W154: 0 | X154: 0 | Y154: 0 | Z154: 0 | AA154: 0 | AB154: 0 | AC154: =IFERROR(IF(ISNUMBER(D154),((D154*AM154)/100)*R154,(AM154/100)*R154),"--") -> 0 | AD154: 0 | AE154: =IF(ISNUMBER(AM154),IF(ISNUMBER(D154),((D154*AM154)/100)*F154,(AM154/100)*F154)," ") ->  | AF154: =IF(ISNUMBER($AM154),IF($AL154="*",$V154,"--"),"--") -> -- | AG154: -- | AH154: -- | AI154: -- | AJ154: -- | AK154: -- | AN154: una scodellina (colma) di ketchup + passata di pomodoro = 30 (ketchup) + 180 (passata di pomodoro) = 114 calorie
A155: Kiwi | B155: * | E155: 0.87 | F155: 61 | G155: 9 | H155: 9 | I155: 4 | J155: 0.7 | K155: 105 | L155: 0.4 | M155: 0 | N155: 34 | O155: 34 | P155: 17 | Q155: 400 | R155: 3 | S155: 3 | T155: 0 | V155: 0 | W155: 0 | X155: 0 | Y155: 0 | Z155: 0 | AA155: 0 | AB155: 0 | AC155: 0 | AD155: 0 | AF155: -- | AG155: -- | AH155: -- | AI155: -- | AJ155: -- | AK155: --
A156: Latte, dietetico | F156: 46 | G156: 4.8 | J156: 3.1 | L156: 1.6 | S156: 0 | T156: 0 | V156: 0 | W156: 0 | X156: 0 | Y156: 0 | Z156: 0 | AA156: 0 | AB156: 0 | AC156: 0 | AD156: 0 | AF156: -- | AG156: -- | AH156: -- | AI156: -- | AJ156: -- | AK156: -- | AL156: *
A157: Latte, fiocchi | B157: * | E157: 1 | F157: 128 | G157: 3 | H157: 3.67 | I157: 3 | J157: 10 | K157: 120 | L157: 8.5 | M157: 0.979 | N157: 91 | O157: 163 | P157: 7 | Q157: 104 | R157: 330 | S157: 0 | T157: 0 | V157: 0 | W157: 0 | X157: 0 | Y157: 0 | Z157: 0 | AA157: 0 | AB157: 0 | AC157: 0 | AD157: 0 | AF157: -- | AG157: -- | AH157: -- | AI157: -- | AJ157: -- | AK157: -- | AL157: * | AN157: FIOCCHI LATTE
A158: Latte, intero | B158: * | E158: 1 | F158: 356 | G158: 51 | H158: 5.05 | I158: 4 | J158: 35.5 | K158: 85 | L158: 0.9 | M158: 1.865 | N158: 113 | O158: 93 | P158: 10 | Q158: 150 | R158: 43 | S158: 0 | T158: =IF(ISNUMBER(D158),((D158*AM158)/100)*G158,(AM158/100)*G158) -> 0 | V158: 0 | W158: =IF(ISNUMBER(D158),((D158*AM158)/100)*L158,(AM158/100)*L158) -> 0 | X158: 0 | Y158: =IFERROR(IF(ISNUMBER(D158),((D158*AM158)/100)*N158,(AM158/100)*N158),"--") -> 0 | Z158: =IFERROR(IF(ISNUMBER(D158),((D158*AM158)/100)*O158,(AM158/100)*O158),"--") -> 0 | AA158: =IFERROR(IF(ISNUMBER(D158),((D158*AM158)/100)*P158,(AM158/100)*P158),"--") -> 0 | AB158: =IFERROR(IF(ISNUMBER(D158),((D158*AM158)/100)*Q158,(AM158/100)*Q158),"--") -> 0 | AC158: 0 | AD158: =IFERROR(IF(ISNUMBER($D158),(($D158*$AM158)/100)*S158,($AM158/100)*S158),"--") -> 0 | AF158: -- | AG158: -- | AH158: -- | AI158: -- | AJ158: -- | AK158: -- | AL158: * | AN158: LATTE INTERO | AP158: 1 bicchiere di latte = 200 grammi
A159: Latte, parzialmente scremato | B159: * | E159: 1 | F159: 49 | G159: 5 | H159: 5.06 | I159: 4 | J159: 3.5 | K159: 90 | L159: 1.8 | M159: 1.257 | N159: 116 | O159: 94 | P159: 11 | Q159: 170 | R159: 47 | S159: 0 | T159: 0 | V159: 0 | W159: 0 | X159: 0 | Y159: 0 | Z159: 0 | AA159: 0 | AB159: 0 | AC159: 0 | AD159: 0 | AF159: -- | AG159: -- | AH159: -- | AI159: -- | AJ159: -- | AK159: -- | AL159: * | AN159: LATTE PARZ. SCREMATO
A160: Latte, scremato | B160: * | E160: 1 | F160: 33 | G160: 4.7 | H160: 5.2 | I160: 4 | J160: 3.4 | K160: 98 | L160: 0.2 | M160: 0.6 | N160: 122 | O160: 97 | P160: 11 | Q160: 150 | R160: 42 | S160: 0 | T160: 0 | V160: 0 | W160: 0 | X160: 0 | Y160: 0 | Z160: 0 | AA160: 0 | AB160: 0 | AC160: 0 | AD160: 0 | AF160: -- | AG160: -- | AH160: -- | AI160: -- | AJ160: -- | AK160: -- | AL160: * | AN160: LATTE SCREMATO
A161: Latte, scremato, in polvere | B161: * | E161: 1 | F161: 356 | G161: 51 | H161: 51 | I161: 31 | J161: 35.5 | K161: 137 | L161: 0.9 | M161: 0.5 | N161: 1257 | O161: 968 | P161: 110 | Q161: 1650 | R161: 535 | S161: 0 | T161: 10.2 | U161: 10.2 | V161: 7.1 | W161: 0.18 | X161: 0.1 | Y161: 251.4 | Z161: 193.6 | AA161: 22 | AB161: 330 | AC161: 107 | AD161: 0 | AE161: 71.2 | AF161: 7.1 | AG161: 7.1 | AH161: 7.1 | AI161: 7.1 | AJ161: -- | AK161: 7.1 | AL161: * | AM161: 20 | AN161: LATTE SCREMATO, IN POLVERE
A162: Latte, scremato, in polvere (1 misurino) | B162: * | C162: 1 mini-misurino grigio | D162: 4.3 | E162: 1 | F162: 356 | G162: 51 | H162: 51 | I162: 31 | J162: 35.5 | K162: 137 | L162: 0.9 | M162: 0.5 | N162: 1257 | O162: 968 | P162: 110 | Q162: 1650 | R162: 535 | S162: 0 | T162: 0 | V162: 0 | W162: 0 | X162: 0 | Y162: 0 | Z162: 0 | AA162: 0 | AB162: 0 | AC162: 0 | AD162: 0 | AF162: -- | AG162: -- | AH162: -- | AI162: -- | AJ162: -- | AK162: -- | AL162: *
A163: Lattuga | B163: * | E163: 0.8 | F163: 15 | G163: 1.1 | H163: 0.8 | I163: 1 | J163: 1.8 | K163: 90 | L163: 0.4 | M163: 0 | N163: 36 | O163: 39 | P163: 13 | Q163: 240 | R163: 28 | S163: 1.1 | T163: 0 | V163: 0 | W163: 0 | X163: 0 | Y163: 0 | Z163: 0 | AA163: 0 | AB163: 0 | AC163: 0 | AD163: 0 | AF163: -- | AG163: -- | AH163: -- | AI163: -- | AJ163: -- | AK163: -- | AN163: LATTUGA | AO163: Una insalatiera piena ma non troppo = 300; una insalatiera molto piena = 400
A164: Lecitina di soia | B164: * | E164: 1 | F164: 900 | G164: 8 | H164: 0 | I164: 0 | J164: 0.01 | K164: 0 | L164: 91 | M164: 15 | S164: 0 | T164: 0 | V164: 0 | W164: 0 | X164: 0 | Y164: 0 | Z164: 0 | AA164: 0 | AB164: 0 | AC164: 0 | AD164: 0 | AF164: -- | AG164: -- | AH164: -- | AI164: -- | AJ164: -- | AK164: --
A165: Lecitina di soia (1 cucchiaino) | B165: * | C165: uno, medio | D165: 1.77 | E165: 1 | F165: 900 | G165: 8 | H165: 0 | I165: 0 | J165: 0.01 | K165: 0 | L165: 91 | M165: 15 | S165: 0 | T165: 0 | V165: 0 | W165: 0 | X165: 0 | Y165: 0 | Z165: 0 | AA165: 0 | AB165: 0 | AC165: 0 | AD165: 0 | AF165: -- | AG165: -- | AH165: -- | AI165: -- | AJ165: -- | AK165: --
A166: Lenticchia, fresca | F166: 116 | G166: 20.13 | J166: 9.02 | L166: 0.38 | N166: 25 | O166: 173 | P166: 37 | Q166: 677 | R166: 6 | S166: 7.9 | T166: 0 | V166: 0 | W166: 0 | X166: 0 | Y166: 0 | Z166: 0 | AA166: 0 | AB166: 0 | AC166: 0 | AD166: 0 | AF166: -- | AG166: -- | AH166: -- | AI166: -- | AJ166: -- | AK166: -- | AL166: l
A167: Lenticchia, lessata | B167: * | E167: 1 | F167: 82 | G167: 15.4 | H167: 2 | I167: 16 | J167: 5 | K167: 86 | L167: 0.5 | M167: 0.2 | N167: 27 | O167: 77 | P167: 28 | Q167: 208 | R167: 220 | S167: 4.2 | T167: 0 | V167: 0 | W167: 0 | X167: 0 | Y167: 0 | Z167: 0 | AA167: 0 | AB167: 0 | AC167: 0 | AD167: 0 | AF167: -- | AG167: -- | AH167: -- | AI167: -- | AJ167: -- | AK167: -- | AL167: l | AN167: LENTICCHIE
A168: Lenticchia, secca | F168: 296 | G168: 49.8 | J168: 21.1 | L168: 2.7 | N168: 56 | O168: 451 | P168: 122 | Q168: 980 | R168: 6 | S168: 13.8 | T168: 0 | V168: 0 | W168: 0 | X168: 0 | Y168: 0 | Z168: 0 | AA168: 0 | AB168: 0 | AC168: 0 | AD168: 0 | AF168: -- | AG168: -- | AH168: -- | AI168: -- | AJ168: -- | AK168: -- | AL168: l
A169: Lenticchia, secca, decorticata | B169: * | E169: 1 | F169: 82 | G169: 15.4 | H169: 2 | I169: 30 | J169: 5 | K169: 86 | L169: 0.5 | M169: 0.2 | N169: 41 | O169: 294 | P169: 72 | Q169: 980 | R169: 6 | S169: 10.8 | T169: 0 | V169: 0 | W169: 0 | X169: 0 | Y169: 0 | Z169: 0 | AA169: 0 | AB169: 0 | AC169: 0 | AD169: 0 | AF169: -- | AG169: -- | AH169: -- | AI169: -- | AJ169: -- | AK169: -- | AL169: l
A170: Lievito di birra, secco (grammi) | B170: * | E170: 1 | F170: 358 | G170: 11 | H170: 0 | I170: 5 | J170: 12.1 | K170: 132 | L170: 0.4 | M170: 0.2 | N170: 30 | O170: 637 | P170: 54 | Q170: 955 | R170: 51 | S170: 26.9 | T170: 0 | V170: 0 | W170: 0 | X170: 0 | Y170: 0 | Z170: 0 | AA170: 0 | AB170: 0 | AC170: 0 | AD170: 0 | AF170: -- | AG170: -- | AH170: -- | AI170: -- | AJ170: -- | AK170: -- | AL170: l
A171: Lievito di birra, secco (1 compressa) | B171: * | C171: 1 compressa | D171: 0.4 | E171: 1 | F171: 358 | G171: 11 | H171: 0 | I171: 5 | J171: 12.1 | K171: 132 | L171: 0.4 | M171: 0.2 | N171: 30 | O171: 637 | P171: 54 | Q171: 955 | R171: 51 | S171: 26.9 | T171: 0 | V171: 0 | W171: 0 | X171: 0 | Y171: 0 | Z171: 0 | AA171: 0 | AB171: 0 | AC171: 0 | AD171: 0 | AF171: -- | AG171: -- | AH171: -- | AI171: -- | AJ171: -- | AK171: -- | AL171: l | AN171: LIEVITO
A172: Lion Nestlé | F172: 500 | G172: 73 | J172: 7.1 | L172: 27 | T172: 0 | V172: 0 | W172: 0 | X172: 0 | Y172: 0 | Z172: 0 | AA172: 0 | AB172: 0 | AC172: 0 | AD172: 0 | AF172: -- | AG172: -- | AH172: -- | AI172: -- | AJ172: -- | AK172: --
A173: Liquirizia | F173: 336 | G173: 78.4 | J173: 5.5 | L173: 0 | N173: 3 | O173: 4 | P173: 2 | Q173: 37 | R173: 12 | S173: 0.2 | T173: 0 | V173: 0 | W173: 0 | X173: 0 | Y173: 0 | Z173: 0 | AA173: 0 | AB173: 0 | AC173: 0 | AD173: 0 | AF173: -- | AG173: -- | AH173: -- | AI173: -- | AJ173: -- | AK173: --
A174: Liquirizia, rotella o bastoncino | F174: 330 | G174: 78 | J174: 4 | L174: 0 | T174: 0 | V174: 0 | W174: 0 | X174: 0 | Y174: 0 | Z174: 0 | AA174: 0 | AB174: 0 | AC174: 0 | AD174: 0 | AF174: -- | AG174: -- | AH174: -- | AI174: -- | AJ174: -- | AK174: -- | AN174: 1 rotella Haribo = 9 gr
A175: M&M's, arachidi (una) | C175: assemblato arachide+cioccolato al latte | D175: =38/16 -> 2.375 | F175: =586*(75/100)+564*(25/100) -> 580.5 | G175: =12*(75/100)+50.8*(25/100) -> 21.7 | J175: 19.325 | L175: =46.9*(75/100)+37.6*(25/100) -> 44.575 | T175: 0 | V175: 0 | W175: 0 | X175: 0 | Y175: 0 | Z175: 0 | AA175: 0 | AB175: 0 | AC175: 0 | AD175: 0 | AF175: -- | AG175: -- | AH175: -- | AI175: -- | AJ175: -- | AK175: --
A176: Mandarino | B176: * | E176: 0.8 | F176: 55 | G176: 0.91 | H176: 10.6 | I176: 4 | J176: 0.7 | K176: 20 | L176: 0.4 | M176: 0 | N176: 37 | O176: 20 | P176: 12 | Q176: 210 | R176: 1 | S176: 1.8 | T176: 0 | V176: 0 | W176: 0 | X176: 0 | Y176: 0 | Z176: 0 | AA176: 0 | AB176: 0 | AC176: 0 | AD176: 0 | AF176: -- | AG176: -- | AH176: -- | AI176: -- | AJ176: -- | AK176: --
A177: Mandorla, latte | B177: * | E177: 1 | F177: 15 | G177: 1.31 | H177: 2 | J177: 0.4 | L177: 0.96 | M177: 0.2 | N177: 184 | O177: 9 | P177: 6 | Q177: 67 | R177: 4.7 | S177: 0.4 | T177: 1.31 | U177: 2 | V177: 0.4 | W177: 0.96 | X177: 0.2 | Y177: 184 | Z177: 9 | AA177: 6 | AB177: 67 | AC177: 4.7 | AD177: 0.4 | AE177: 15 | AF177: -- | AG177: -- | AH177: -- | AI177: -- | AJ177: -- | AK177: 0.4 | AM177: 100 | AN177: MANDORLE, LATTE
A178: Mandorla, secca | B178: * | E178: 1 | F178: 574 | G178: 4.3 | H178: 4 | I178: 0 | J178: 19.5 | K178: 55 | L178: 53.3 | M178: 4 | N178: 240 | O178: 484 | P178: 260 | Q178: 780 | R178: 1 | S178: 12.2 | T178: 0 | V178: 0 | W178: 0 | X178: 0 | Y178: 0 | Z178: 0 | AA178: 0 | AB178: 0 | AC178: 0 | AD178: 0 | AF178: -- | AG178: -- | AH178: -- | AI178: -- | AJ178: -- | AK178: -- | AL178: ° | AN178: MANDORLE (GR.)
A179: Mandorla, secca (una) | B179: * | C179: una mandorla | D179: 1.2 | E179: 1 | F179: 574 | G179: 4.3 | H179: 4 | I179: 0 | J179: 19.5 | K179: 55 | L179: 53.3 | M179: 4 | N179: 266 | O179: 484 | P179: 260 | Q179: 780 | R179: 1 | S179: 12.2 | T179: 0 | V179: 0 | W179: 0 | X179: 0 | Y179: 0 | Z179: 0 | AA179: 0 | AB179: 0 | AC179: 0 | AD179: 0 | AF179: -- | AG179: -- | AH179: -- | AI179: -- | AJ179: -- | AK179: -- | AL179: ° | AN179: MANDORLA (UNA)
A180: Manzo, fegato | B180: * | E180: 1 | F180: 142 | G180: 2 | H180: 0 | I180: 3 | J180: 20 | K180: 155 | L180: 5 | M180: 1.2 | N180: 5 | O180: 379 | P180: 20 | Q180: 150 | R180: 49 | S180: 0 | T180: 0 | V180: 0 | W180: 0 | X180: 0 | Y180: 0 | Z180: 0 | AA180: 0 | AB180: 0 | AC180: 0 | AD180: 0 | AF180: -- | AG180: -- | AH180: -- | AI180: -- | AJ180: -- | AK180: -- | AL180: *
A181: Manzo, omogeneizzato | B181: * | E181: 1 | F181: 84 | G181: 6.8 | H181: 0 | I181: 2 | J181: 6.1 | K181: 148 | L181: 3.6 | M181: 1.2 | N181: 34 | O181: 103 | P181: 11 | Q181: 318 | R181: 80 | S181: 0.1 | T181: 0 | V181: 0 | W181: 0 | X181: 0 | Y181: 0 | Z181: 0 | AA181: 0 | AB181: 0 | AC181: 0 | AD181: 0 | AF181: -- | AG181: -- | AH181: -- | AI181: -- | AJ181: -- | AK181: -- | AL181: *
A182: Marmellata | F182: 232 | G182: 56.4 | J182: 0.4 | L182: 0.1 | T182: 0 | V182: 0 | W182: 0 | X182: 0 | Y182: 0 | Z182: 0 | AA182: 0 | AB182: 0 | AC182: 0 | AD182: 0 | AF182: -- | AG182: -- | AH182: -- | AI182: -- | AJ182: -- | AK182: -- | AO182: Mela ridotta a mousse da 936 a 762 (+22,83%)
A183: Mela | B183: * | E183: 0.85 | F183: 45 | G183: 11.1 | H183: 10.4 | I183: 3 | J183: 0.2 | K183: 31 | L183: 0.3 | M183: 0 | N183: 0 | O183: 11 | P183: 10 | Q183: 120 | R183: 1 | S183: 1.3 | T183: 0 | V183: 0 | W183: 0 | X183: 0 | Y183: 0 | Z183: 0 | AA183: 0 | AB183: 0 | AC183: 0 | AD183: 0 | AF183: -- | AG183: -- | AH183: -- | AI183: -- | AJ183: -- | AK183: -- | AN183: MELA | AO183: Mele grandi = 170 gr. di parte edibile
A184: Mela, succo | F184: 91 | G184: 11 | J184: 0 | L184: 0 | S184: 0.2 | T184: 0 | V184: 0 | W184: 0 | X184: 0 | Y184: 0 | Z184: 0 | AA184: 0 | AB184: 0 | AC184: 0 | AD184: 0 | AF184: -- | AG184: -- | AH184: -- | AI184: -- | AJ184: -- | AK184: -- | AO184: Mele piccole = 100 gr. di parte edibile
A185: Melanzana | B185: * | E185: 0.92 | F185: 16 | G185: 2.9 | H185: 2.4 | I185: 1 | J185: 1.1 | K185: 67 | L185: 0.1 | M185: 0 | N185: 9 | O185: 25 | P185: 14 | Q185: 184 | R185: 2 | S185: 3.4 | T185: 0 | V185: 0 | W185: 0 | X185: 0 | Y185: 0 | Z185: 0 | AA185: 0 | AB185: 0 | AC185: 0 | AD185: 0 | AF185: -- | AG185: -- | AH185: -- | AI185: -- | AJ185: -- | AK185: -- | AN185: MELANZANA | AO185: Mele medie = 120-135 gr. di parte edibile
A186: Melone d'estate | B186: * | E186: 0.47 | F186: 30 | G186: 7.3 | H186: 7.9 | I186: 3 | J186: 0.2 | K186: 34 | L186: 0.2 | M186: 0.1 | N186: 9 | O186: 15 | P186: 12 | Q186: 333 | R186: 16 | S186: 0.9 | T186: 0 | V186: 0 | W186: 0 | X186: 0 | Y186: 0 | Z186: 0 | AA186: 0 | AB186: 0 | AC186: 0 | AD186: 0 | AF186: =IF(ISNUMBER($AM186),IF($AL186="*",$V186,"--"),"--") -> -- | AG186: -- | AH186: -- | AI186: -- | AJ186: -- | AK186: -- | AO186: Nella mousse il peso si riduce del 20%
A187: Mackerel | F187: 221 | G187: 0 | H187: 0 | J187: 19 | L187: 16 | N187: 12 | O187: 203 | P187: 25 | Q187: 320 | R187: 90 | S187: 0 | T187: 0 | V187: 0 | W187: 0 | X187: 0 | Y187: 0 | Z187: 0 | AA187: 0 | AB187: 0 | AC187: 0 | AD187: 0 | AF187: -- | AG187: -- | AH187: -- | AI187: -- | AJ187: -- | AK187: -- | AN187: MACKEREL
A188: Merluzzo | B188: * | E188: =240/350 -> 0.6857142857 | F188: 71 | G188: 0 | H188: 0 | I188: 0 | J188: 17 | K188: 148 | L188: 0.3 | M188: 0.1 | N188: 37 | O188: 203 | P188: 25 | Q188: 320 | R188: 54 | S188: 0 | T188: 0 | V188: 0 | W188: 0 | X188: 0 | Y188: 0 | Z188: 0 | AA188: 0 | AB188: 0 | AC188: 0 | AD188: 0 | AF188: -- | AG188: -- | AH188: -- | AI188: -- | AJ188: -- | AK188: -- | AL188: * | AN188: MERLUZZO
A189: Merluzzo, filetti, surgelati | B189: * | E189: 1 | F189: 90 | G189: 0 | H189: 0 | I189: 0 | J189: 20 | K189: 148 | L189: 0.997 | M189: 0 | N189: 0 | O189: 203 | P189: 25 | Q189: 320 | R189: 69.44 | S189: 0 | T189: 0 | V189: 0 | W189: 0 | X189: 0 | Y189: 0 | Z189: 0 | AA189: 0 | AB189: 0 | AC189: 0 | AD189: 0 | AF189: -- | AG189: -- | AH189: -- | AI189: -- | AJ189: -- | AK189: -- | AL189: *
A190: Merluzzo, impanato (bastoncini o croccole) | F190: 195 | G190: 0.5 | J190: 11 | L190: 9.5 | T190: 0 | V190: 0 | W190: 0 | X190: 0 | Y190: 0 | Z190: 0 | AA190: 0 | AB190: 0 | AC190: 0 | AD190: 0 | AF190: -- | AG190: -- | AH190: -- | AI190: -- | AJ190: -- | AK190: -- | AL190: *
A191: Miele | F191: 294 | G191: 76.4 | J191: 0.4 | L191: 0.6 | N191: 6 | O191: 4 | P191: 2 | Q191: 51 | R191: 4 | T191: 0 | V191: 0 | W191: 0 | X191: 0 | Y191: 0 | Z191: 0 | AA191: 0 | AB191: 0 | AC191: 0 | AD191: 0 | AF191: -- | AG191: -- | AH191: -- | AI191: -- | AJ191: -- | AK191: --
A192: Minestrone Knorr liofilizzato con riso | F192: 42.95 | G192: 8.55 | J192: 1.5 | L192: 2.8 | T192: 0 | V192: 0 | W192: 0 | X192: 0 | Y192: 0 | Z192: 0 | AA192: 0 | AB192: 0 | AC192: 0 | AD192: 0 | AF192: -- | AG192: -- | AH192: -- | AI192: -- | AJ192: -- | AK192: -- | AL192: l
A193: Minestrone, surgelato | B193: * | E193: 1 | F193: 54 | G193: 10.4 | H193: 0 | I193: 5 | J193: 2.7 | K193: 94 | L193: 2 | M193: 0.1 | N193: 30 | O193: 51 | P193: 3 | Q193: 130 | R193: 35 | S193: 2.6 | T193: 0 | V193: 0 | W193: 0 | X193: 0 | Y193: 0 | Z193: 0 | AA193: 0 | AB193: 0 | AC193: 0 | AD193: 0 | AF193: -- | AG193: -- | AH193: -- | AI193: -- | AJ193: -- | AK193: -- | AN193: MINESTRONE
A194: Mirtillo, succo | F194: 28 | G194: 5.5 | J194: 0.4 | L194: 0.1 | N194: 6 | O194: 7 | P194: 3 | R194: 5 | S194: 0 | T194: 0 | V194: 0 | W194: 0 | X194: 0 | Y194: 0 | Z194: 0 | AA194: 0 | AB194: 0 | AC194: 0 | AD194: 0 | AF194: -- | AG194: -- | AH194: -- | AI194: -- | AJ194: -- | AK194: --
A195: Mozzarella | F195: 253 | G195: 0 | J195: 19.9 | L195: 16.1 | N195: 731 | O195: 354 | P195: 26 | Q195: 145 | R195: 16 | S195: 0 | T195: 0 | V195: 0 | W195: 0 | X195: 0 | Y195: 0 | Z195: 0 | AA195: 0 | AB195: 0 | AC195: 0 | AD195: 0 | AF195: -- | AG195: -- | AH195: -- | AI195: -- | AJ195: -- | AK195: -- | AL195: *
A196: Nasello, surgelato, tranci Coop | B196: * | E196: 1 | F196: 90 | G196: 0 | H196: 0 | I196: 0 | J196: 20 | K196: 148 | L196: 0.997 | M196: 0 | N196: 16 | O196: 203 | P196: 32 | Q196: 320 | R196: 68 | S196: 0 | T196: 0 | V196: 0 | W196: 0 | X196: 0 | Y196: 0 | Z196: 0 | AA196: 0 | AB196: 0 | AC196: 0 | AD196: 0 | AF196: -- | AG196: -- | AH196: -- | AI196: -- | AJ196: -- | AK196: -- | AL196: * | AN196: =1.2*30 -> 36
A197: Nespola | F197: 28 | G197: 6.1 | J197: 0.4 | L197: 0.9 | N197: 16 | O197: 27 | P197: 13 | Q197: 266 | R197: 1 | S197: 1.7 | T197: 0 | V197: 0 | W197: 0 | X197: 0 | Y197: 0 | Z197: 0 | AA197: 0 | AB197: 0 | AC197: 0 | AD197: 0 | AF197: -- | AG197: -- | AH197: -- | AI197: -- | AJ197: -- | AK197: --
A198: Nesquik | F198: 378 | G198: 79.6 | J198: 5 | L198: 3 | N198: 29 | O198: 160 | P198: 255 | Q198: 748 | R198: 0.4 | S198: 6.5 | T198: 0 | V198: 0 | W198: 0 | X198: 0 | Y198: 0 | Z198: 0 | AA198: 0 | AB198: 0 | AC198: 0 | AD198: 0 | AF198: -- | AG198: -- | AH198: -- | AI198: -- | AJ198: -- | AK198: -- | AN198: NESQUIK
A199: Nocciola, secca | F199: 655 | G199: 1.8 | J199: 13 | L199: 64 | N199: 114 | O199: 290 | P199: 160 | Q199: 466 | R199: 0 | S199: 9.7 | T199: 0 | V199: 0 | W199: 0 | X199: 0 | Y199: 0 | Z199: 0 | AA199: 0 | AB199: 0 | AC199: 0 | AD199: 0 | AF199: -- | AG199: -- | AH199: -- | AI199: -- | AJ199: -- | AK199: -- | AL199: °
A200: Noce, secca | B200: * | E200: =5.5/12.5 -> 0.44 | F200: 649 | G200: 8.8 | H200: 2.6 | I200: 0 | J200: 15.8 | K200: 55 | L200: 61.4 | M200: 6.1 | N200: 83 | O200: 346 | P200: 130 | Q200: 368 | R200: 2 | S200: 6.7 | T200: 0 | V200: 0 | W200: 0 | X200: 0 | Y200: 0 | Z200: 0 | AA200: 0 | AB200: 0 | AC200: 0 | AD200: 0 | AF200: -- | AG200: -- | AH200: -- | AI200: -- | AJ200: -- | AK200: -- | AL200: ° | AN200: NOCE (gr.) | AO200: noce medio-grande = 6,5 gr.; noce piccola = 3-4 gr.; 5 noci = 20 gr.
A201: Noce secca (una) | B201: * | C201: una noce | D201: 6 | E201: =5.5/12.5 -> 0.44 | F201: 649 | G201: 8.8 | H201: 2.6 | I201: 0 | J201: 15.8 | K201: 55 | L201: 61.4 | M201: 6.1 | N201: 83 | O201: 346 | P201: 130 | Q201: 368 | R201: 2 | S201: 6.7 | T201: 0 | V201: 0 | W201: 0 | X201: 0 | Y201: 0 | Z201: 0 | AA201: 0 | AB201: 0 | AC201: 0 | AD201: 0 | AF201: -- | AG201: -- | AH201: -- | AI201: -- | AJ201: -- | AK201: -- | AL201: ° | AN201: NOCE (una)
... 147 more rows
